Cogmind - Beta 13 @@@ ROGUE MODE // 2024.07.09 @ 11:40:46 Player: Dosh Result: Escaped! Performance ------------- Evolutions (9) 4500 Regions Visited (33) 6600 Robots Destroyed (469) 2345 Value Destroyed (13634) 13634 Prototype IDs (86) 1720 Alien Tech Used (0) 0 Bonus (8865) 8865 TOTAL SCORE: 37664 Bonus ------- High Alert Combat Kills 702 Follower Combat Kills 1570 Entered Garrisons 1400 Used RIF Installer 3500 Aligned with FarCom 300 Win 3000 Friendly Fire -1607 Cogmind --------- Core Integrity 1600/1600 Matter 132/300 Energy 232/240 System Corruption 0% Temperature Cool (20) Movement Flying (18) Location To Epsilon Eridani Parts ------- > --- POWER (1) -------- Zero-point Reactor > --- PROPULSION (6) --- Electron Diverter Electron Diverter Electron Diverter Improved Q-thruster Experimental Q-thruster Experimental Q-thruster > --- UTILITY (16) ----- Large Storage Unit Advanced Weight Redist. System Improved Trap Scanner Long-range Terrain Scanner Experimental Terrain Scan Processor Transport Network Coupler Experimental Hacking Suite Experimental Hacking Suite Experimental Hacking Suite Advanced System Shield Advanced System Shield > --- WEAPON (2) ------- Nanosword (fused) > --- INVENTORY (15) --- Xenon Bombardment Thruster Improved Diametric Drive Experimental Q-thruster Experimental Weapon Cycler Stasis Canceller Improved Transmission Jammer Thermal Barrier Advanced System Restoration Module Improved Trap Extractor (2/6 EM Surge) Advanced Trap Extractor (2/8 Shock) Enhanced Nova Cannon Peak State ------------ > --- POWER ------------ Zero-point Reactor > --- PROPULSION ------- Electron Diverter Electron Diverter Electron Diverter Improved Q-thruster Experimental Q-thruster Experimental Q-thruster > --- UTILITY ---------- Advanced Power Amplifier Large Storage Unit Advanced Weight Redist. System Improved Trap Scanner Long-range Terrain Scanner Experimental Terrain Scan Processor Transport Network Coupler Experimental Hacking Suite Experimental Hacking Suite Experimental Hacking Suite Experimental Hacking Suite Advanced System Shield Advanced System Shield Relay Coupler [NC] > --- WEAPON ----------- Advanced Datajack Nanosword > --- INVENTORY -------- Zero-point Reactor Improved Diametric Drive Experimental Q-thruster Experimental Weapon Cycler Stasis Canceller Improved Transmission Jammer Thermal Barrier Advanced System Restoration Module Improved Trap Extractor Advanced Trap Extractor Enhanced Nova Cannon Hellfire Missile Launcher [Rating: 169] Favorites ----------- Power Cooled Antimatter Reactor Engine Cooled Ion Engine Power Core Nuclear Core Reactor Cooled Antimatter Reactor Propulsion Electron Diverter Treads Light Treads Leg Enhanced Armored Leg Flight Unit Electron Diverter Utility Experimental Hacking Suite Device Improved Trap Scanner Storage Large Storage Unit Processor Transport Network Coupler Hackware Experimental Hacking Suite Protection Hardened Medium Armor Plating Weapon Nanosword Energy Gun EM Pulse Gun Energy Cannon Light EM Pulse Cannon Ballistic Gun Heavy Assault Rifle Ballistic Cannon Bore Cannon Launcher Mini Grenade Launcher Impact Weapon Heavy Mace Slashing Weapon Nanosword Special Melee Weapon Improved Datajack Build | -11 -10 -10 -9 -9 -9 -8 -8 -7 -7 -7 -7 -7 -7 -6 -6 -6 -6 -6 -5 -5 -5 -5 -4 -4 -4 -4 -4 -4 -3 -3 -3 -2 -1 ------- Run | Yrd Mat Min Mat Min Exi Min Mat Fac Was Fac Gar Fac Gar Fac Was Fac Gar Fac Fac Was Fac Gar Fac Was Fac Gar Fac Gar Res Gar Res Res Acc Slots Evolved 18 | . . . 2 . . . 2 2 . . . . . 2 . . . . 2 . . . 2 . . . . . 2 . . 2 2 Power . | . . . . . . . . . . . . . . . . . . . . . . . . . . . . . . . . . . Propulsion 4 | . . . 1 . . . 1 1 . . . . . . . . . . . . . . . . . . . . 1 . . . . Utility 14 | . . . 1 . . . 1 1 . . . . . 2 . . . . 2 . . . 2 . . . . . 1 . . 2 2 Weapon . | . . . . . . . . . . . . . . . . . . . . . . . . . . . . . . . . . . Parts Attached 419 | 6 17 3 30 5 . 2 22 37 . 15 2 30 1 32 1 13 2 14 13 1 27 2 32 . 16 6 39 3 18 4 19 7 . Power 20 | 1 3 . 3 . . . 2 1 . . . 1 . 1 . . . . . . 1 . 5 . . . . . . . 1 1 . Engine 8 | 1 3 . 2 . . . 2 . . . . . . . . . . . . . . . . . . . . . . . . . . Core 1 | . . . 1 . . . . . . . . . . . . . . . . . . . . . . . . . . . . . . Reactor 11 | . . . . . . . . 1 . . . 1 . 1 . . . . . . 1 . 5 . . . . . . . 1 1 . Propulsion 72 | 2 5 . 10 . . 1 11 5 . . . 2 . . . 3 . . . . 8 . 5 . . . 7 . 7 . 6 . . Treads 29 | 2 5 . 10 . . 1 11 . . . . . . . . . . . . . . . . . . . . . . . . . . Leg 1 | . . . . . . . . . . . . 1 . . . . . . . . . . . . . . . . . . . . . Wheel . | . . . . . . . . . . . . . . . . . . . . . . . . . . . . . . . . . . Hover . | . . . . . . . . . . . . . . . . . . . . . . . . . . . . . . . . . . Flight 42 | . . . . . . . . 5 . . . 1 . . . 3 . . . . 8 . 5 . . . 7 . 7 . 6 . . Utility 176 | 1 3 2 7 4 . . 2 19 . 10 . 15 . 13 1 9 . 9 9 . 12 . 9 . 8 2 19 1 10 . 9 2 . Device 115 | . 2 2 1 2 . . 1 9 . 8 . 9 . 8 1 2 . 5 4 . 10 . 7 . 8 2 17 1 7 . 9 . . Storage 6 | 1 1 . 2 . . . . 1 . . . . . . . . . 1 . . . . . . . . . . . . . . . Processor 9 | . . . . . . . . 1 . 1 . 2 . 1 . 1 . . . . . . 1 . . . 1 . 1 . . . . Hackware 18 | . . . . . . . . 3 . . . . . 1 . 4 . . 3 . 2 . 1 . . . 1 . 1 . . 2 . Protection 28 | . . . 4 2 . . 1 5 . 1 . 4 . 3 . 2 . 3 2 . . . . . . . . . 1 . . . . Artifact . | . . . . . . . . . . . . . . . . . . . . . . . . . . . . . . . . . . Weapon 151 | 2 6 1 10 1 . 1 7 12 . 5 2 12 1 18 . 1 2 5 4 1 6 2 13 . 8 4 13 2 1 4 3 4 . Energy Gun 1 | 1 . . . . . . . . . . . . . . . . . . . . . . . . . . . . . . . . . Energy Cannon 10 | . . . 2 . . . . . . 2 . 1 . . . . . . . . . . 2 . . . 1 . 1 1 . . . Ballistic Gun 10 | 1 1 . 1 . . 1 4 . . . . . . 1 . . . 1 . . . . . . . . . . . . . . . Ballistic Cannon 11 | . 3 1 4 . . . 2 . . . . 1 . . . . . . . . . . . . . . . . . . . . . Launcher 50 | . . . 3 1 . . 1 4 . 1 1 3 1 7 . . 1 1 1 . 4 2 4 . 3 2 5 1 . 1 1 2 . Special Weapon . | . . . . . . . . . . . . . . . . . . . . . . . . . . . . . . . . . . Impact Weapon 5 | . 2 . . . . . . 2 . . . 1 . . . . . . . . . . . . . . . . . . . . . Slashing Weapon 18 | . . . . . . . . 3 . . 1 4 . 2 . 1 1 2 1 . . . 2 . 1 . . . . . . . . Piercing Weapon . | . . . . . . . . . . . . . . . . . . . . . . . . . . . . . . . . . . Special Melee Weapon 46 | . . . . . . . . 3 . 2 . 2 . 8 . . . 1 2 1 2 . 5 . 4 2 7 1 . 2 2 2 . Unidentified Prototypes 38 | . . 1 . . . . 1 5 . . . 5 . 5 . 3 . 4 1 . . . 5 . . . 5 . 2 . 1 . . Parts Lost 38 | . 1 . 3 2 . 1 5 . . . . . . 1 . . . 1 . . 6 . 6 . . . 2 . 1 . 3 4 2 Power 4 | . 1 . 1 . . . . . . . . . . . . . . . . . . . 1 . . . . . . . . 1 . Propulsion 8 | . . . 1 . . 1 2 . . . . . . . . . . . . . 2 . 1 . . . . . . . 1 . . Utility 18 | . . . 1 2 . . 1 . . . . . . 1 . . . . . . 3 . 2 . . . 2 . 1 . 2 2 1 Weapon 8 | . . . . . . . 2 . . . . . . . . . . 1 . . 1 . 2 . . . . . . . . 1 1 Highest Loss Streak 5 | . 1 . 1 2 . 1 2 . . . . . . 1 . . . 1 . . 2 . 5 . . . 1 . 1 . 2 3 2 To Critical Strikes 1 | . . . . . . . . . . . . . . . . . . . . . 1 . . . . . . . . . . . . Average Slot Usage (%) 89 | . 98 100 98 100 100 99 92 74 76 75 76 75 76 79 80 79 80 77 77 82 80 94 94 100 99 100 98 100 97 98 99 93 80 Engine 2 | . 13 14 9 . . . 5 6 . . . . . . . . . . . . . . . . . . . . . . . . . Core 1 | . . . 1 11 11 11 3 . . . . . . . . . . . . . . . . . . . . . . . . . . Reactor 3 | . . . . . . . . . 7 7 7 6 7 6 6 6 6 6 5 5 4 5 5 5 5 5 5 5 4 4 4 3 4 Treads 11 | . 28 28 33 33 33 32 35 . . . . . . . . . . . . . . . . . . . . . . . . . . Flight 12 | . . . . . . . . 14 15 15 15 14 15 13 13 13 13 13 11 11 20 29 25 26 26 26 25 26 27 28 27 26 24 Device 8 | . 13 14 3 10 11 11 12 3 . 5 . 1 . 7 6 . 6 7 9 11 8 11 14 15 15 15 14 15 11 9 9 13 12 Storage 7 | . 14 14 11 11 11 11 9 7 7 7 7 7 7 6 6 6 6 6 5 5 5 5 5 5 5 5 5 5 4 4 4 4 4 Processor 3 | . . . . . . . . . . . . . . 2 6 6 6 6 5 5 5 5 10 10 10 10 10 10 9 9 9 8 8 Hackware 15 | . . . . . . . . 20 23 23 23 23 23 23 20 25 20 20 22 23 22 29 23 26 26 26 25 26 28 28 27 28 22 Protection 5 | . . . 16 11 11 11 9 3 7 . 7 4 7 4 6 5 6 3 4 5 1 . . . . . . . 2 4 3 . . Ballistic Gun 2 | . 11 . 9 1 . . 12 . . . . . . . . . . . . . . . . . . . . . . . . . . Ballistic Cannon 3 | . 9 28 9 11 11 11 2 . . . . . . . . . . . . . . . . . . . . . . . . . . Launcher 1 | . . . . 9 11 10 1 . . . 2 . 5 . . . . . . . . . . . . . . 1 . . . . . Slashing Weapon 3 | . . . . . . . . 5 7 7 4 6 7 5 6 5 5 5 4 5 5 5 4 5 4 5 5 5 4 4 4 4 4 Special Melee Weapon 2 | . . . . . . . . 6 7 3 7 6 . 4 6 6 6 4 2 5 1 . 3 5 4 4 4 3 1 2 4 3 2 Naked Turns . | . . . . . . . . . . . . . . . . . . . . . . . . . . . . . . . . . . Heaviest Build 117 | 11 22 22 111 110 107 109 117 45 34 35 40 40 42 45 36 35 42 47 53 49 53 52 53 42 53 53 54 53 53 55 52 54 43 Greatest Support 112 | 40 40 40 63 63 63 63 112 56 54 54 54 54 54 56 54 56 54 56 54 54 54 49 49 49 49 49 49 49 56 56 56 54 46 Greatest Overweight (x) 1 | . . . 1 1 1 1 1 . . . . . . . . . . . . . 1 1 1 . 1 1 1 1 . . 1 . . Average Overweight (x) . | . . . . 1 1 1 . . . . . . . . . . . . . . . . . . . . . . . . . . . Largest Inventory Capacity 25 | 8 10 10 25 25 25 25 25 25 10 10 10 10 10 10 10 10 10 15 15 15 15 15 15 15 15 15 15 15 15 15 15 15 15 Average Capacity 15 | 7 9 10 22 25 25 25 25 10 10 10 10 10 10 10 10 10 10 11 15 15 15 15 15 15 15 15 15 15 15 15 15 15 15 Most Carried 25 | 1 10 10 25 25 25 25 25 25 10 10 9 10 9 10 10 10 9 12 15 15 15 15 15 15 15 15 15 15 15 15 15 13 11 Average Carried 14 | . 5 9 19 23 24 24 23 9 10 9 9 9 9 8 9 8 9 9 13 14 13 14 12 14 14 14 14 15 13 14 14 11 11 Final Capacity 25 | 8 10 10 25 25 25 25 25 10 10 10 10 10 10 10 10 10 10 15 15 15 15 15 15 15 15 15 15 15 15 15 15 15 15 Final Carried 25 | 1 10 10 25 24 25 24 24 10 10 9 9 9 9 10 10 9 9 12 14 15 14 14 15 15 15 15 15 15 15 14 14 11 11 Class Distribution -------------------- 26% | Mutant 21% | Hacker-Mutant 18% | Wizard-Scout 8% | Wizard-Sprinter 7% | Scavenger-Mutant 7% | Hacker-Scout 3% | Wizard-Ninja Dominant Class ---------------- Mutant | -10/Materials Mutant | -10/Mines Scavenger-Mutant | -9/Materials Mutant | -9/Mines Mutant | -9/Exiles Mutant | -8/Mines Mutant | -8/Materials Hacker-Mutant | -7/Factory Hacker-Mutant | -7/Waste Hacker-Mutant | -7/Factory Hacker-Mutant | -7/Garrison Hacker-Mutant | -7/Factory Hacker-Mutant | -7/Garrison Hacker-Mutant | -6/Factory Hacker-Mutant | -6/Waste Hacker-Mutant | -6/Factory Hacker-Scout | -6/Garrison Hacker-Scout | -6/Factory Wizard-Scout | -5/Factory Wizard-Scout | -5/Waste Wizard-Scout | -5/Factory Wizard-Scout | -5/Garrison Wizard-Scout | -4/Factory Wizard-Scout | -4/Waste Wizard-Scout | -4/Factory Wizard-Sprinter | -4/Garrison Wizard-Sprinter | -4/Factory Wizard-Sprinter | -4/Garrison Wizard-Scout | -3/Research Wizard-Sprinter | -3/Garrison Wizard-Scout | -3/Research Wizard-Scout | -2/Research Wizard-Scout | -1/Access Resources | -11 -10 -10 -9 -9 -9 -8 -8 -7 -7 -7 -7 -7 -7 -6 -6 -6 -6 -6 -5 -5 -5 -5 -4 -4 -4 -4 -4 -4 -3 -3 -3 -2 -1 ----------- Run | Yrd Mat Min Mat Min Exi Min Mat Fac Was Fac Gar Fac Gar Fac Was Fac Gar Fac Fac Was Fac Gar Fac Was Fac Gar Fac Gar Res Gar Res Res Acc Matter Collected 11472 | 238 430 234 1401 214 . 281 1092 526 . 278 96 628 30 1007 138 127 130 240 348 . 683 251 680 . 213 289 1207 . 289 124 107 191 . Remotely . | . . . . . . . . . . . . . . . . . . . . . . . . . . . . . . . . . . Salvage Created 15279 | . 731 347 2053 152 . 625 1765 825 . 345 161 860 153 1417 134 . 106 1020 393 . 934 137 587 . 472 144 1367 58 235 90 35 133 . Parts 895 | . 37 23 123 14 . 34 109 60 . 25 10 41 6 58 6 . 3 64 33 . 61 13 40 . 21 5 84 5 10 . 3 7 . Haulers Intercepted 19 | . 2 . 6 . . . 4 1 . . . 3 . 1 . . . 1 . . . . . . . 1 . . . . . . . Recyclers Shooed 9 | . 1 . 1 . . . 2 . . . . 1 . . . 1 . 1 . . . . 1 . . . . . 1 . . . . Parts Field Recycled . | . . . . . . . . . . . . . . . . . . . . . . . . . . . . . . . . . . Retrieved Matter . | . . . . . . . . . . . . . . . . . . . . . . . . . . . . . . . . . . Parts Self-Destructed . | . . . . . . . . . . . . . . . . . . . . . . . . . . . . . . . . . . Prevented . | . . . . . . . . . . . . . . . . . . . . . . . . . . . . . . . . . . Kills | -11 -10 -10 -9 -9 -9 -8 -8 -7 -7 -7 -7 -7 -7 -6 -6 -6 -6 -6 -5 -5 -5 -5 -4 -4 -4 -4 -4 -4 -3 -3 -3 -2 -1 ------- Run | Yrd Mat Min Mat Min Exi Min Mat Fac Was Fac Gar Fac Gar Fac Was Fac Gar Fac Fac Was Fac Gar Fac Was Fac Gar Fac Gar Res Gar Res Res Acc Combat Hostiles Destroyed 259 | . 13 10 31 14 . 19 30 8 . 4 7 9 7 18 . . 3 2 8 . 12 11 9 . 6 5 17 5 . 3 2 6 . Melee 12 | . . . . . . . . . . 1 1 2 . 1 . . . 1 1 . 2 . 2 . . . . . . . . 1 . Guns 33 | . 7 . 5 3 . . 18 . . . . . . . . . . . . . . . . . . . . . . . . . . Cannons 44 | . 6 10 17 2 . . 9 . . . . . . . . . . . . . . . . . . . . . . . . . . AOE 170 | . . . 9 9 . 19 3 8 . 3 6 7 7 17 . . 3 1 7 . 10 11 7 . 6 5 17 5 . 3 2 5 . Classes Destroyed 19 | . 8 1 3 1 . . 2 . . 1 . . . 1 1 . . . 1 . . . . . . . . . . . . . . Worker 43 | . 2 . 10 . . 2 1 4 . . . 3 . 4 . . . 1 3 . 4 . . . 2 . 5 . 1 . . 1 . Builder 37 | . 1 . 1 . . 4 4 4 . . . 1 . 3 . . . 3 2 . 3 . 5 . 1 . 4 . . . . 1 . Tunneler 5 | . . 1 . . . 1 . 1 . . . . . . . . . . . . . . . . . . . . 2 . . . . Hauler 19 | . 2 . 6 . . . 4 1 . . . 3 . 1 . . . 1 . . . . . . . 1 . . . . . . . Recycler 48 | . 1 1 6 . . 1 3 5 . 2 . 2 . 5 . . . 4 1 . 4 . 2 . 3 . 7 . 1 . . . . Mechanic 2 | . . . 1 . . . . . . . . . . . . . . . . . . . 1 . . . . . . . . . . Operator 15 | . 2 . 1 . . . 3 2 . . . 2 . . . . . 2 2 . . 1 . . . . . . . . . . . Watcher 41 | . 2 . 3 . . . 1 3 . 5 . 4 . 2 . . . 6 2 . 3 . 2 . . . 7 . 1 . . . . Swarmer 92 | . 3 3 4 7 . 4 8 6 . 3 3 . . 3 . . . . 5 . 9 9 . . 4 4 7 4 . . 2 4 . Cutter 7 | . . . . . . . . . . . . . . . . . . . 2 . . . 2 . . . 3 . . . . . . Grunt 108 | . 10 7 15 1 . 14 11 2 . . 4 6 7 12 . . 2 1 1 . . 2 1 . . 1 6 1 . 2 . 2 . Brawler 5 | . . . . . . . . . . . . . . 2 . . 1 . . . . . . . . . 1 . . 1 . . . Duelist 6 | . . . 2 1 . 2 . . . . . 1 . . . . . . . . . . . . . . . . . . . . . Sentry 20 | . . . 10 . . . 9 . . . . . . . . . . . . . 1 . . . . . . . . . . . . Specialist 1 | . . . . . . . 1 . . . . . . . . . . . . . . . . . . . . . . . . . . Hunter 4 | . . . . . . . 1 . . . . . . 1 . . . . . . . . . . 2 . . . . . . . . Programmer 14 | . . . . . . . . . . 1 . 2 . 2 . . . 1 . . 2 . 6 . . . . . . . . . . Assembled 5 | . . . . 5 . . . . . . . . . . . . . . . . . . . . . . . . . . . . . Martyr 2 | . . . . . . . . . . . . . . . 2 . . . . . . . . . . . . . . . . . . Best Kill Streak 15 | . 7 3 7 5 . 11 8 6 . 4 4 5 7 15 . . 3 6 5 . 5 7 8 . 7 2 13 5 4 3 2 5 . Combat Bots Only 7 | . 3 3 5 5 . 6 4 3 . 3 4 3 7 7 . . 3 1 5 . 5 7 4 . 4 2 6 5 . 3 2 4 . Max Kills in Single Turn 5 | . 1 2 4 3 . 4 3 4 . 2 2 3 2 3 1 . 1 1 4 . 5 4 3 . 4 2 4 4 1 2 2 3 . Gunslinging . | . . . . . . . . . . . . . . . . . . . . . . . . . . . . . . . . . . Exploded 5 | . . . 3 3 . 4 2 3 . 1 2 2 2 3 . . 1 1 3 . 5 4 2 . 3 2 3 4 . 2 2 2 . Melee 1 | . . . . . . . . . . 1 1 1 . 1 . . . 1 1 . 1 . 1 . . . . . . . . 1 . Uniques/NPCs Destroyed . | . . . . . . . . . . . . . . . . . . . . . . . . . . . . . . . . . . Combat | -11 -10 -10 -9 -9 -9 -8 -8 -7 -7 -7 -7 -7 -7 -6 -6 -6 -6 -6 -5 -5 -5 -5 -4 -4 -4 -4 -4 -4 -3 -3 -3 -2 -1 -------- Run | Yrd Mat Min Mat Min Exi Min Mat Fac Was Fac Gar Fac Gar Fac Was Fac Gar Fac Fac Was Fac Gar Fac Was Fac Gar Fac Gar Res Gar Res Res Acc Hostile Shots Fired 947 | . 68 29 125 38 . 10 152 44 . 9 9 15 1 38 . 12 3 65 18 . 56 4 55 . 21 14 20 9 17 11 42 54 8 Missed 386 | . 16 4 34 7 . 1 48 28 . 4 6 5 1 22 . 5 1 43 10 . 25 1 23 . 14 5 12 4 12 5 17 29 4 Damage Taken 10119 | . 666 258 1337 395 . 185 1546 406 . 78 65 146 . 370 . 97 38 252 319 . 744 143 843 22 126 172 341 110 98 77 666 574 45 Core 1909 | . 70 29 169 19 . 33 128 66 . 13 . 16 . 22 . . . 56 113 . 82 42 325 . 68 79 124 . 36 25 231 163 . Absorbed by Shields 57 | . . . . . . . . . . . . . . . . . . . 57 . . . . . . . . . . . . . . Redirected to Shielding 647 | . . . . . . . . . . . . . . . . 74 34 92 137 . 151 . . . . . . . . 11 148 . . Ignored by Resistances 6 | . . . . . . . . 6 . . . . . . . . . . . . . . . . . . . . . . . . . Regen/Repaired (Parts) 1331 | . . . . . . . 29 12 . 26 . 117 . 15 1 75 . 78 241 . 365 . 81 . 79 . 212 . . . . . . Core Remaining (%) 76 | 100 . 60 . . . 44 76 . . . . . 86 . . . . 90 . . . 76 . . . . . 48 . . 77 88 100 Volleys Fired 609 | . 89 17 151 23 . 23 150 7 . 9 5 8 8 22 . . 4 3 10 . 11 9 14 . 4 7 15 2 5 7 1 5 . Largest 2 | . 2 2 2 2 . 1 2 1 . 1 1 1 1 1 . . 1 1 1 . 1 1 1 . 1 1 1 1 1 1 1 1 . Hottest 120 | . 70 70 91 80 . 30 80 39 . 90 46 46 46 46 . . 46 46 46 . 46 46 46 . 60 60 60 60 120 120 60 60 . Shots Fired 954 | . 161 34 288 37 . 23 254 7 . 9 5 8 8 22 . . 4 3 10 . 11 9 14 . 4 7 16 2 5 7 1 5 . Gun 428 | . 99 . 107 14 . . 208 . . . . . . . . . . . . . . . . . . . . . . . . . . Cannon 339 | . 62 34 173 14 . . 43 . . 5 . . . . . . . . . . . . . . . . . . 5 3 . . . Launcher 187 | . . . 8 9 . 23 3 7 . 4 5 8 8 22 . . 4 3 10 . 11 9 14 . 4 7 16 2 . 4 1 5 . Special . | . . . . . . . . . . . . . . . . . . . . . . . . . . . . . . . . . . Kinetic 669 | . 128 34 228 28 . . 251 . . . . . . . . . . . . . . . . . . . . . . . . . . Thermal 13 | . . . . . . . . . . 5 . . . . . . . . . . . . . . . . . . 5 3 . . . Explosive 187 | . . . 8 9 . 23 3 7 . 4 5 8 8 22 . . 4 3 10 . 11 9 14 . 4 7 16 2 . 4 1 5 . Electromagnetic 85 | . 33 . 52 . . . . . . . . . . . . . . . . . . . . . . . . . . . . . . Robot Hit Streak 24 | . 24 7 14 5 . 5 18 3 . 6 8 11 6 17 . . 21 2 5 . 13 3 8 . 7 11 9 . . 4 5 . . Robot Miss Streak 10 | . 10 3 9 4 . 3 4 2 . . . 1 . 1 . . . 1 2 . 1 1 1 . . . 2 . . . . 2 . Penetration Max 1 | . . . . 1 . . 1 . . . . . . . . . . . . . . . . . . . . . . . . . . Secondary Targets 2 | . . . . . . . 2 . . . . . . . . . . . . . . . . . . . . . . . . . . Max Gunslinging Chain 1 | . . . . . . . 1 . . . . . . . . . . . . . . . . . . . . . . . . . . Shots Hit Robots 771 | . 104 19 152 17 . 6 175 24 . 12 4 32 4 46 5 2 6 22 15 . 30 4 31 . 4 6 34 . 9 5 1 2 . Core Hits 627 | . 36 15 77 22 . 52 67 31 . 11 10 27 13 56 2 . 6 18 32 . 22 14 23 . 12 8 42 5 3 6 1 16 . Critical Kills 16 | . . . 8 . . . 8 . . . . . . . . . . . . . . . . . . . . . . . . . . Critical Parts Destroyed 19 | . . . 6 5 . . 8 . . . . . . . . . . . . . . . . . . . . . . . . . . Critical Strikes 56 | . 3 3 18 5 . . 19 2 . . . 1 . 1 . . . 1 . . 1 . . . . . 1 . 1 . . . . Destroy 38 | . . . 14 5 . . 19 . . . . . . . . . . . . . . . . . . . . . . . . . . Blast 8 | . 3 3 2 . . . . . . . . . . . . . . . . . . . . . . . . . . . . . . Corrupt 2 | . . . 2 . . . . . . . . . . . . . . . . . . . . . . . . . . . . . . Sever 8 | . . . . . . . . 2 . . . 1 . 1 . . . 1 . . 1 . . . . . 1 . 1 . . . . Melee Attacks 687 | . 7 . . . . . . 63 . 34 6 69 1 66 5 22 11 62 45 . 46 8 58 . 21 8 57 5 41 10 30 11 1 Impact 12 | . 7 . . . . . . 5 . . . . . . . . . . . . . . . . . . . . . . . . . Slashing 648 | . . . . . . . . 58 . 33 6 69 1 56 5 22 9 61 43 . 44 8 58 . 21 6 55 5 41 8 28 10 1 Piercing . | . . . . . . . . . . . . . . . . . . . . . . . . . . . . . . . . . . Sneak Attacks 98 | . 1 . . . . . . 11 . 1 . 8 . 14 5 2 2 12 6 . 10 1 10 . . 2 7 . 4 2 . . . Combat Hostiles 9 | . . . . . . . . . . . . . . 9 . . . . . . . . . . . . . . . . . . . Follow-up Attacks . | . . . . . . . . . . . . . . . . . . . . . . . . . . . . . . . . . . Damage Inflicted 48409 | . 1378 387 3735 851 . 1972 3250 2465 . 943 704 2689 923 4868 398 144 452 1829 2142 . 3201 1370 3253 . 1364 801 5440 529 827 758 225 1511 . Guns 4097 | . 745 . 854 129 . . 2369 . . . . . . . . . . . . . . . . . . . . . . . . . . Cannons 3846 | . 536 371 2192 171 . . 576 . . . . . . . . . . . . . . . . . . . . . . . . . . Explosions 26285 | . 30 . 609 482 . 1966 296 1088 . 536 638 1217 923 3965 . . 452 251 1220 . 1399 1239 1442 . 1228 801 3533 529 . 758 225 1458 . Melee 13974 | . 40 . . . . . . 1377 . 407 66 1472 . 903 398 144 . 1578 922 . 1802 131 1811 . 136 . 1907 . 827 . . 53 . Ramming 207 | . 27 16 80 69 . 6 9 . . . . . . . . . . . . . . . . . . . . . . . . . . Kinetic 6714 | . 966 371 2132 300 . . 2945 . . . . . . . . . . . . . . . . . . . . . . . . . . Thermal 1380 | . 30 . . . . 106 . 243 . . . 249 . 436 . . . . . . . . . . . . 316 . . . . . . Explosive 24651 | . . . 609 482 . 1860 296 787 . 536 638 968 923 3529 . . 452 251 1024 . 1399 1239 1442 . 1228 801 3217 529 . 758 225 1458 . Electromagnetic 1483 | . 315 . 914 . . . . 58 . . . . . . . . . . 196 . . . . . . . . . . . . . . Impact 218 | . 40 . . . . . . 178 . . . . . . . . . . . . . . . . . . . . . . . . . Slashing 13756 | . . . . . . . . 1199 . 407 66 1472 . 903 398 144 . 1578 922 . 1802 131 1811 . 136 . 1907 . 827 . . 53 . Piercing . | . . . . . . . . . . . . . . . . . . . . . . . . . . . . . . . . . . Highest Corruption 17 | . . . . . . . . 1 6 6 . 2 2 3 3 . . . . 8 8 3 2 11 12 12 17 17 . . . . . Average Corruption 6 | . . . . . . . . 1 3 3 . 2 2 2 2 . . . . 8 2 3 1 8 11 12 13 17 . . . . . Corruption Purged 17 | . . . . . . . . 1 . 6 . . . . 3 . . . . . 7 . . . . . . . . . . . . Corruption Blocked . | . . . . . . . . . . . . . . . . . . . . . . . . . . . . . . . . . . Effects 222 | . . . . . . . . 1 1 7 . 3 1 7 2 . . . . 1 27 4 16 6 41 10 89 6 . . . . . Message Errors 53 | . . . . . . . . . . 3 . . . 1 1 . . . . . 7 . 5 3 11 1 21 . . . . . . Matter Fused 51 | . . . . . . . . . . 2 . 2 . 3 1 . . . . . 6 2 5 . 7 4 17 2 . . . . . Heat Flow Errors 36 | . . . . . . . . . . 2 . 1 . 1 . . . . . . 7 1 2 . 8 1 11 2 . . . . . Energy Discharges 25 | . . . . . . . . . . . . . 1 . . . . . . . 4 1 2 . 2 3 11 1 . . . . . Parts Rejected 1 | . . . . . . . . . . . . . . . . . . . . 1 . . . . . . . . . . . . . Parts Fused 2 | . . . . . . . . . . . . . . . . . . . . . . . . . 2 . . . . . . . . Data Loss (minor) 21 | . . . . . . . . 1 . . . . . . . . . . . . 1 . 1 1 4 1 11 1 . . . . . Data Loss (major) 14 | . . . . . . . . . . . . . . . . . . . . . 2 . 1 . 2 . 9 . . . . . . Misfires 1 | . . . . . . . . . . . . . . . . . . . . . . . . . . . 1 . . . . . . Alerts 10 | . . . . . . . . . 1 . . . . 2 . . . . . . . . . . 2 . 5 . . . . . . Misdirections 8 | . . . . . . . . . . . . . . . . . . . . . . . . 2 3 . 3 . . . . . . Overload Shots 2 | . . . . . . . . . . 2 . . . . . . . . . . . . . . . . . . . . . . . Overflow Damage 5320 | . 18 . 82 7 . . 24 329 . 60 41 380 128 461 21 84 . 380 276 . 705 162 634 . 189 13 834 27 205 28 78 154 . Projectiles 86 | . . . 73 . . . 13 . . . . . . . . . . . . . . . . . . . . . . . . . . Explosions 1790 | . . . 9 5 . . 11 4 . 43 41 112 128 263 . . . 26 38 . 164 46 114 . 130 13 356 27 . 28 78 154 . Melee 3444 | . 18 . . 2 . . . 325 . 17 . 268 . 198 21 84 . 354 238 . 541 116 520 . 59 . 478 . 205 . . . . Knockbacks 25 | . 7 3 12 . . . 2 1 . . . . . . . . . . . . . . . . . . . . . . . . . Impact 2 | . . 1 . . . . . 1 . . . . . . . . . . . . . . . . . . . . . . . . . Kinetic 22 | . 7 2 11 . . . 2 . . . . . . . . . . . . . . . . . . . . . . . . . . Secondary 1 | . . . 1 . . . . . . . . . . . . . . . . . . . . . . . . . . . . . . Self-Inflicted Damage 837 | . 35 . . 37 . 18 94 75 . . . . . 96 . . . . 103 . 31 88 61 . . . 101 . . . . 98 . Shots 20 | . 1 . . 2 . 1 2 1 . . . . . 2 . . . . 4 . 2 2 1 . . . 1 . . . . 1 . Rammed 26 | . 3 2 12 5 . 1 3 . . . . . . . . . . . . . . . . . . . . . . . . . . Targets Rammed 31 | . 4 3 13 5 . 3 3 . . . . . . . . . . . . . . . . . . . . . . . . . . Kicked . | . . . . . . . . . . . . . . . . . . . . . . . . . . . . . . . . . . Crushed 5 | . 1 1 1 . . 2 . . . . . . . . . . . . . . . . . . . . . . . . . . . Highest Temperature 390 | . 153 78 342 259 . 40 5 . . 153 18 140 12 40 . . . . . . 266 211 193 14 371 163 267 197 310 254 46 390 . Average Temperature 55 | . 41 32 89 114 . 28 3 . . 55 8 27 7 10 . . . . . . 39 31 14 6 95 26 41 39 48 85 5 78 . Received Heat Transfer 2781 | . 288 93 507 60 . 135 684 24 . . . 18 . 57 . . 18 48 . . 30 27 51 . . 39 49 21 9 36 141 446 . Effects 13 | . . . 7 . . . . . . . . . . . . . . . . . . 2 . . . . 1 . 1 1 . 1 . Energy Bleed 6 | . . . 3 . . . . . . . . . . . . . . . . . . . . . . . 1 . . 1 . 1 . Interference 6 | . . . 4 . . . . . . . . . . . . . . . . . . 2 . . . . . . . . . . . Damage (minor) 1 | . . . . . . . . . . . . . . . . . . . . . . . . . . . . . 1 . . . . Siege Activations . | . . . . . . . . . . . . . . . . . . . . . . . . . . . . . . . . . . Robots Corrupted . | . . . . . . . . . . . . . . . . . . . . . . . . . . . . . . . . . . Combat Hostiles . | . . . . . . . . . . . . . . . . . . . . . . . . . . . . . . . . . . Parts Fried 15 | . 5 . 4 . . . . 3 . . . . . . . . . 2 . . . . . . . . 1 . . . . . . Impact Corruptions 7 | . 1 . . 1 . . . 5 . . . . . . . . . . . . . . . . . . . . . . . . . Robots Melted . | . . . . . . . . . . . . . . . . . . . . . . . . . . . . . . . . . . Combat Hostiles . | . . . . . . . . . . . . . . . . . . . . . . . . . . . . . . . . . . Parts Melted 3 | . . . . . . . 1 1 . . . 1 . . . . . . . . . . . . . . . . . . . . . Heat Transferred 1000 | . 50 . . . . 150 . 200 . . . 150 . 250 . . . . . . . . . . . . 200 . . . . . . Parts Sabotaged . | . . . . . . . . . . . . . . . . . . . . . . . . . . . . . . . . . . Parts Stolen . | . . . . . . . . . . . . . . . . . . . . . . . . . . . . . . . . . . Parts Stripped . | . . . . . . . . . . . . . . . . . . . . . . . . . . . . . . . . . . Power Chain Reactions 3 | . 1 . . . . . . 1 . . . . . . . . . . 1 . . . . . . . . . . . . . . Alert | -11 -10 -10 -9 -9 -9 -8 -8 -7 -7 -7 -7 -7 -7 -6 -6 -6 -6 -6 -5 -5 -5 -5 -4 -4 -4 -4 -4 -4 -3 -3 -3 -2 -1 ------- Run | Yrd Mat Min Mat Min Exi Min Mat Fac Was Fac Gar Fac Gar Fac Was Fac Gar Fac Fac Was Fac Gar Fac Was Fac Gar Fac Gar Res Gar Res Res Acc Peak Influence 1077 | . 244 291 524 314 . 457 389 1077 406 418 397 429 598 1016 329 605 404 411 393 50 343 556 940 104 387 369 409 220 348 319 485 727 473 Initial 436 | . . 66 1 133 . . 156 110 376 284 127 207 284 313 329 . 12 212 71 20 35 10 291 44 72 63 193 53 123 51 179 272 436 Average 235 | . 97 138 294 130 . 209 206 537 400 169 273 265 397 530 224 156 177 192 106 33 180 407 499 85 194 158 160 162 159 163 161 505 453 Maximum Alert Level 3 | . 1 1 2 1 . 2 1 3 2 2 1 2 2 3 1 2 2 2 1 . 1 2 3 . 1 1 2 1 1 1 2 3 2 Low Security (%) 47 | 100 92 81 10 73 . 43 48 18 . 69 18 24 . 18 50 81 55 40 89 100 45 22 . 100 37 77 70 88 67 66 52 . . Level 1 38 | . 7 18 76 26 . 27 51 16 24 27 81 69 53 26 49 4 43 58 10 . 54 3 8 . 62 22 28 11 32 33 43 24 . Level 2 10 | . . . 12 . . 29 . 31 75 3 . 5 46 20 . 13 1 . . . . 73 84 . . . . . . . 3 68 100 Level 3 3 | . . . . . . . . 32 . . . . . 34 . . . . . . . . 6 . . . . . . . . 7 . Level 4 . | . . . . . . . . . . . . . . . . . . . . . . . . . . . . . . . . . . Level 5 . | . . . . . . . . . . . . . . . . . . . . . . . . . . . . . . . . . . High Security . | . . . . . . . . . . . . . . . . . . . . . . . . . . . . . . . . . . Max Security . | . . . . . . . . . . . . . . . . . . . . . . . . . . . . . . . . . . Squads Dispatched 128 | . 7 . 3 . . 2 8 13 . 2 . 5 . 7 . 12 . 12 9 . 12 . 11 . 3 . 10 . 6 . 3 2 1 Investigation 40 | . 4 . . . . . . 4 . . . 2 . 2 . 5 . 1 3 . 6 . 5 . . . 2 . 4 . 1 1 . Extermination 27 | . . . . . . . . 2 . 1 . 2 . 2 . 1 . 2 1 . 4 . 3 . 2 . 4 . 2 . 1 . . Reinforcement 48 | . 3 . 3 . . 2 6 5 . 1 . 1 . 1 . 2 . 8 4 . 2 . 2 . 1 . 4 . . . 1 1 1 Assault 4 | . . . . . . . . 2 . . . . . . . . . 1 1 . . . . . . . . . . . . . . Garrison 9 | . . . . . . . 2 . . . . . . 2 . 4 . . . . . . 1 . . . . . . . . . . Intercept . | . . . . . . . . . . . . . . . . . . . . . . . . . . . . . . . . . . Searches Triggered 2 | . . . . . . . . . . . . . . . . . . 1 . . . . 1 . . . . . . . . . . Construction Impeded 9 | . . . 2 . . 2 1 . . . . . . 1 . . . . . . 1 . . . . . 2 . . . . . . Haulers Reinforced 4 | . . . . . . . . 2 . . . . . . . . . 1 1 . . . . . . . . . . . . . . Active Scanning Responses . | . . . . . . . . . . . . . . . . . . . . . . . . . . . . . . . . . . Cargo Convoy Interrupts 12 | . . . . . . . . 1 . 1 . 1 . 1 . 1 . 1 1 . . . 1 . 1 . 1 . 1 . 1 . . Stealth | -11 -10 -10 -9 -9 -9 -8 -8 -7 -7 -7 -7 -7 -7 -6 -6 -6 -6 -6 -5 -5 -5 -5 -4 -4 -4 -4 -4 -4 -3 -3 -3 -2 -1 --------- Run | Yrd Mat Min Mat Min Exi Min Mat Fac Was Fac Gar Fac Gar Fac Was Fac Gar Fac Fac Was Fac Gar Fac Was Fac Gar Fac Gar Res Gar Res Res Acc Distress Signals 37 | . 4 . 3 . . 1 3 2 . 1 . 3 . 2 . 1 . 2 3 . 1 . 2 . 2 1 1 . . . 2 2 1 Communications Jammed 6 | . . . . . . . . . . . . . . . . . . . . . . . . . . . . . 5 . 1 . . Distress Signals 6 | . . . . . . . . . . . . . . . . . . . . . . . . . . . . . 5 . 1 . . Times Spotted 678 | . 32 11 67 17 . 14 80 34 5 18 7 25 4 32 . 13 14 32 24 4 26 3 48 6 11 5 37 7 30 6 41 21 4 Peak Tracking Total 13 | . 4 3 7 5 . 4 8 8 6 3 3 6 5 4 . 3 6 4 5 4 5 2 10 6 6 3 5 6 5 6 13 7 4 Tactical Retreats 97 | . 1 1 4 6 . . 5 6 . 2 . 5 1 2 . 2 4 8 5 . 5 1 11 . 2 1 2 1 7 2 8 5 . Traps | -11 -10 -10 -9 -9 -9 -8 -8 -7 -7 -7 -7 -7 -7 -6 -6 -6 -6 -6 -5 -5 -5 -5 -4 -4 -4 -4 -4 -4 -3 -3 -3 -2 -1 ------- Run | Yrd Mat Min Mat Min Exi Min Mat Fac Was Fac Gar Fac Gar Fac Was Fac Gar Fac Fac Was Fac Gar Fac Was Fac Gar Fac Gar Res Gar Res Res Acc Traps Triggered 27 | . 3 . . . . . . 4 . . . . . 2 . . 4 1 1 . 3 . 1 . . 1 1 3 . 1 2 . . Indirectly . | . . . . . . . . . . . . . . . . . . . . . . . . . . . . . . . . . . Trap Hack Attempts 338 | . . . . . . . . 14 . 34 . 32 . 43 . 7 14 66 34 . 19 . 5 . . . 37 . 16 . 12 5 . Triggered 4 | . . . . . . . . . . 1 . 2 . . . . . . 1 . . . . . . . . . . . . . . Disarmed 4 | . . . . . . . . . . . . . . 1 . . . . 1 . . . . . . . . . 1 . 1 . . Reprogrammed 102 | . . . 3 . . . . 6 . 9 . 8 . 12 . . 1 16 10 . 6 . 1 . . . 17 . 1 . 8 4 . Reused 70 | . . . . . . . . 5 . 2 . 3 . 9 . 3 . 7 4 . . . 9 . 3 . 15 . 3 . 5 2 . Traps Extracted 77 | . . . 3 . . . . 4 . 9 . 3 . 10 . . . 5 10 . 6 . . . . . 20 . 2 . 5 . . Installed 72 | . . . . . . . . 3 . 4 . 4 . 9 . 5 . 3 5 . . 1 8 . 4 . 19 . 4 . 3 . . Triggered 72 | . . . 1 . . . . 5 . 2 . 3 . 9 . 3 . 7 5 . . . 9 . 3 . 15 . 3 . 5 2 . Most Traps Carried 17 | . . . 3 3 3 3 3 7 4 9 9 10 8 11 9 9 4 6 11 11 17 17 16 8 8 4 13 5 6 3 8 4 4 Machines | -11 -10 -10 -9 -9 -9 -8 -8 -7 -7 -7 -7 -7 -7 -6 -6 -6 -6 -6 -5 -5 -5 -5 -4 -4 -4 -4 -4 -4 -3 -3 -3 -2 -1 ---------- Run | Yrd Mat Min Mat Min Exi Min Mat Fac Was Fac Gar Fac Gar Fac Was Fac Gar Fac Fac Was Fac Gar Fac Was Fac Gar Fac Gar Res Gar Res Res Acc Machines Disabled 89 | . . 1 4 1 . 1 4 23 . 1 2 10 1 9 . 1 . 2 6 . 3 4 4 . . 1 4 2 . 3 . 2 . Max in Single Turn 12 | . . 1 2 1 . 1 1 12 . 1 1 6 1 2 . . . 1 2 . 2 1 2 . . 1 4 2 . 1 . 1 . Garrison Access 23 | . . . . . . . 1 4 . . . 3 . 1 . 1 . 3 2 . 1 . 1 . . . 2 . 1 . 2 . 1 Garrison Relay 2 | . . . . . . . . . . . 1 . . . . . . . . . . . . . . . . . . 1 . . . Machines Repaired . | . . . . . . . . . . . . . . . . . . . . . . . . . . . . . . . . . . Machines Dismantled . | . . . . . . . . . . . . . . . . . . . . . . . . . . . . . . . . . . Machines Sabotaged . | . . . . . . . . . . . . . . . . . . . . . . . . . . . . . . . . . . Overloaded Fab Kills . | . . . . . . . . . . . . . . . . . . . . . . . . . . . . . . . . . . Hacking | -11 -10 -10 -9 -9 -9 -8 -8 -7 -7 -7 -7 -7 -7 -6 -6 -6 -6 -6 -5 -5 -5 -5 -4 -4 -4 -4 -4 -4 -3 -3 -3 -2 -1 --------- Run | Yrd Mat Min Mat Min Exi Min Mat Fac Was Fac Gar Fac Gar Fac Was Fac Gar Fac Fac Was Fac Gar Fac Was Fac Gar Fac Gar Res Gar Res Res Acc Machines Accessed 244 | . 7 1 10 . 2 . 11 16 . 16 1 21 . 9 . 17 2 18 14 . 22 2 17 . 8 2 20 . 13 . 8 4 3 Terminals 143 | . 5 . 8 . . . 9 7 . 9 1 9 . 6 . 8 2 12 6 . 12 2 10 . 5 2 11 . 8 . 5 4 2 Fabricators 33 | . . . . . . . . 3 . 1 . 5 . 1 . 3 . 1 3 . 5 . 4 . 1 . 2 . 3 . 1 . . Repair Stations 21 | . . . . . . . 1 1 . 3 . 2 . 1 . 2 . 1 3 . 2 . 1 . 1 . 3 . . . . . . Recycling Units 9 | . 2 . 2 . . . . 2 . 1 . 1 . . . . . . . . . . . . . . 1 . . . . . . Scanalyzers 6 | . . . . . . . . . . 1 . . . . . 2 . 1 1 . . . 1 . . . . . . . . . . Garrison Access 29 | . . . . . . . 1 3 . 1 . 4 . 1 . 2 . 3 1 . 3 . 1 . 1 . 3 . 2 . 2 . 1 Total Hacks 746 | . 20 1 32 . 2 . 30 40 . 35 1 55 . 31 . 63 8 47 44 . 71 12 68 . 28 13 65 . 41 . 18 15 6 Successful 479 | . 10 1 18 . 2 . 16 21 . 25 1 34 . 20 . 39 2 25 32 . 52 2 44 . 19 7 47 . 31 . 17 10 4 Failed 265 | . 9 . 13 . . . 14 19 . 10 . 21 . 11 . 24 6 22 12 . 19 10 24 . 9 6 18 . 10 . 1 5 2 Catastrophic 26 | . . . 1 . . . 3 5 . 2 . 1 . . . 2 1 1 2 . 2 . 3 . 1 . . . 2 . . . . Database Lockouts 2 | . 1 . 1 . . . . . . . . . . . . . . . . . . . . . . . . . . . . . . Manual 375 | . 11 . 21 . 1 . 12 19 . 14 . 30 . 18 . 27 6 23 17 . 22 9 42 . 12 7 37 . 26 . 7 10 4 Terminals 489 | . 16 . 25 . . . 24 23 . 22 1 33 . 22 . 39 8 32 24 . 29 12 47 . 18 13 37 . 31 . 13 15 5 Fabricators 101 | . . . . . . . . 7 . 2 . 7 . 6 . 7 . 4 11 . 21 . 11 . 3 . 11 . 8 . 3 . . Repair Stations 79 | . . . . . . . 5 2 . 6 . 6 . 2 . 9 . 3 6 . 17 . 4 . 6 . 13 . . . . . . Recycling Units 21 | . 4 . 7 . . . . 4 . 2 . 3 . . . . . . . . . . . . . . 1 . . . . . . Scanalyzers 19 | . . . . . . . . . . 2 . . . . . 5 . 5 2 . . . 5 . . . . . . . . . . Garrison Access 34 | . . . . . . . 1 4 . 1 . 6 . 1 . 3 . 3 1 . 4 . 1 . 1 . 3 . 2 . 2 . 1 Terminal Hacks 193 | . 7 1 12 . 2 . 10 5 . 8 1 8 . 8 . 13 2 10 13 . 15 2 17 . 7 7 15 . 14 . 9 5 2 Record 6 | . . . . . 1 . . . . . . . . . . . . . . . . . 2 . . . . . 2 . 1 . . Part Schematic 8 | . . . . . . . . 1 . . . . . 1 . 1 . . 1 . . . . . . . 1 . 2 . 1 . . Robot Schematic 1 | . . . . . . . . . . . . . . . . . . . . . . . 1 . . . . . . . . . . Robot Analysis 3 | . 2 . . . . . . . . . . . . . . . . . . . . . . . . . . . 1 . . . . Prototype ID Bank 13 | . 3 . 6 . . . 3 . . . . . . . . . . . . . 1 . . . . . . . . . . . . Open Door 2 | . . 1 . . . . . . . . . . . . . . . . . . . . . . . . . . . . . . 1 Level Access Points 4 | . . . . . . . . . . . . . . . . . . 1 . . . . . . . . . . 1 . . 1 1 Branch Access Points 5 | . . . . . . . . . . . . . . . . 1 . . 1 . 1 . . . 1 . . . 1 . . . . Emergency Access Points 1 | . . . . . . . . . . . . . . . . . . . . . . . . . . 1 . . . . . . . Machine Index 9 | . . . . . . . . . . 1 . . . 1 . . . 1 1 . 1 . . . . . 1 . 1 . 1 1 . Terminal Index 8 | . . . . . . . . 1 . . . 1 . . . 1 . . . . 1 . 1 . 1 . . . 1 . 1 . . Fabricator Index 5 | . . . . . . . . . . . . . . . . 1 . . . . . . 1 . 1 . . . 1 . 1 . . Repair Station Index 1 | . . . . . . . . . . . . . . . . . . . . . 1 . . . . . . . . . . . . Recycling Unit Index 1 | . . . . . . . . . . . . 1 . . . . . . . . . . . . . . . . . . . . . Scanalyzer Index 2 | . . . . . . . . . . . . . . . . 1 . . . . . . . . 1 . . . . . . . . Garrison Index 6 | . . . . . . . . 1 . 1 . 1 . . . 1 . . . . . . 1 . 1 . . . . . . . . Alert Level 5 | . . . 1 . . . 2 . . 2 . . . . . . . . . . . . . . . . . . . . . . . Unreport Threat 29 | . . . 2 . . . 2 1 . 2 . 1 . 3 . 2 . 1 2 . 3 . 5 . . . 4 . . . 1 . . Locate Traps 8 | . 1 . . . . . 2 . . . . . . . . . . 2 1 . 1 . 1 . . . . . . . . . . Reprogram Traps 3 | . . . 1 . . . . . . . . . . 1 . . . 1 . . . . . . . . . . . . . . . Patrol Status 9 | . . . . . . . . . . . . 1 . . . 1 . . 1 . 1 . . . 1 . 1 . 1 . 1 1 . Transport Status 1 | . . . 1 . . . . . . . . . . . . . . . . . . . . . . . . . . . . . . Reinforcement Status 1 | . . . . . . . . . . . . . . . . . . . . . . . . . . . 1 . . . . . . Recall Investigation 19 | . 1 . . . . . . . . . . 2 . . . 2 . 1 3 . 3 . 3 . . . 1 . 1 . 1 1 . Recall Extermination 16 | . . . . . . . . 1 . 1 . . . 1 . 1 . 1 1 . 2 . 1 . 1 . 3 . 2 . 1 . . Recall Reinforcements 7 | . . . . . . . . . . . . . . 1 . 1 . 1 . . . . 1 . . . 2 . . . . 1 . Recall Assault 2 | . . . . . . . . . . . . . . . . . . 1 . . . . . . . . 1 . . . . . . Hauler Manifests 4 | . . . 1 . . . 1 . . 1 . . . . . . . . 1 . . . . . . . . . . . . . . Zone Layout 2 | . . . . . . . . . . . . 1 . . . . . . 1 . . . . . . . . . . . . . . Garrison Registry 4 | . . . . . . . . . . . 1 . . . . . 1 . . . . 1 . . . 1 . . . . . . . Patrol Navigation 4 | . . . . . . . . . . . . . . . . . 1 . . . . 1 . . . 2 . . . . . . . Security Stations 3 | . . . . . . . . . . . . . . . . . . . . . . . . . . 3 . . . . . . . Derelict Proto ID Bank 1 | . . . . . 1 . . . . . . . . . . . . . . . . . . . . . . . . . . . . Fabricator Hacks 57 | . . . . . . . . 4 . 1 . 2 . 3 . 6 . 2 6 . 10 . 9 . 1 . 5 . 6 . 2 . . Network Status 7 | . . . . . . . . 2 . 1 . 1 . 1 . . . . . . . . 1 . 1 . . . . . . . . Load Schematic 24 | . . . . . . . . 1 . . . . . 1 . 3 . 1 3 . 5 . 4 . . . 2 . 3 . 1 . . Build 26 | . . . . . . . . 1 . . . 1 . 1 . 3 . 1 3 . 5 . 4 . . . 3 . 3 . 1 . . Repair Station Hacks 70 | . . . . . . . 2 2 . 6 . 6 . 2 . 8 . 2 6 . 14 . 4 . 6 . 12 . . . . . . Scan Component 35 | . . . . . . . 1 1 . 3 . 3 . 1 . 4 . 1 3 . 7 . 2 . 3 . 6 . . . . . . Repair 35 | . . . . . . . 1 1 . 3 . 3 . 1 . 4 . 1 3 . 7 . 2 . 3 . 6 . . . . . . Recycling Unit Hacks 6 | . . . 2 . . . . 2 . 1 . 1 . . . . . . . . . . . . . . . . . . . . . Retrieve Components 6 | . . . 2 . . . . 2 . 1 . 1 . . . . . . . . . . . . . . . . . . . . . Scanalyzer 15 | . . . . . . . . . . 2 . . . . . 4 . 3 2 . . . 4 . . . . . . . . . . Insert Component 8 | . . . . . . . . . . 1 . . . . . 2 . 2 1 . . . 2 . . . . . . . . . . Analyze 7 | . . . . . . . . . . 1 . . . . . 2 . 1 1 . . . 2 . . . . . . . . . . Garrison Access Hacks 30 | . . . . . . . 1 2 . 1 . 6 . 1 . 3 . 3 1 . 2 . 1 . 1 . 3 . 2 . 2 . 1 Unlock Access 8 | . . . . . . . . . . 1 . 1 . . . 1 . 1 . . 1 . . . 1 . 1 . 1 . . . . Seal Access 19 | . . . . . . . 1 2 . . . 3 . 1 . 1 . 2 1 . 1 . 1 . . . 2 . 1 . 2 . 1 Coupler Status 3 | . . . . . . . . . . . . 2 . . . 1 . . . . . . . . . . . . . . . . . Unauthorized Hacks 108 | . 3 . 4 . . . 3 6 . 6 . 11 . 6 . 5 . 5 4 . 11 . 9 . 4 . 12 . 9 . 4 5 1 Terminals 78 | . 1 . 4 . . . 3 5 . 5 . 7 . 3 . 5 . 5 4 . 4 . 7 . 2 . 7 . 7 . 3 5 1 Track 6 | . . . . . . . . . . . . 3 . . . . . . . . . . 1 . . . 1 . . . . 1 . Assimilate 37 | . . . 2 . . . . 2 . 4 . 1 . . . 2 . 3 2 . 3 . 4 . 1 . 4 . 6 . 2 . 1 Botnet 24 | . . . 1 . . . 2 2 . 1 . 2 . 2 . 2 . 2 1 . 1 . 1 . 1 . 1 . 1 . 1 3 . Operators 11 | . 1 . 1 . . . 1 1 . . . 1 . 1 . 1 . . 1 . . . 1 . . . 1 . . . . 1 . Fabricators 23 | . . . . . . . . 1 . . . 3 . 3 . . . . . . 5 . 2 . 2 . 4 . 2 . 1 . . Report 1 | . . . . . . . . . . . . . . . . . . . . . 1 . . . . . . . . . . . . Prioritize 9 | . . . . . . . . . . . . . . 1 . . . . . . 1 . 1 . 1 . 2 . 2 . 1 . . Liberate 10 | . . . . . . . . 1 . . . 3 . 1 . . . . . . 2 . 1 . 1 . 1 . . . . . . Haulers 3 | . . . . . . . . . . . . . . 1 . . . . . . 1 . . . . . 1 . . . . . . Repair Stations . | . . . . . . . . . . . . . . . . . . . . . . . . . . . . . . . . . . Recycling Units 5 | . 2 . . . . . . . . 1 . 1 . . . . . . . . . . . . . . 1 . . . . . . Recyclers 3 | . . . . . . . . . . 1 . 1 . . . . . . . . . . . . . . 1 . . . . . . Tunnel 2 | . 2 . . . . . . . . . . . . . . . . . . . . . . . . . . . . . . . . Scanalyzers . | . . . . . . . . . . . . . . . . . . . . . . . . . . . . . . . . . . Garrison Access 2 | . . . . . . . . . . . . . . . . . . . . . 2 . . . . . . . . . . . . Reprogram 1 | . . . . . . . . . . . . . . . . . . . . . 1 . . . . . . . . . . . . Watchers 1 | . . . . . . . . . . . . . . . . . . . . . 1 . . . . . . . . . . . . Data Cores Recovered 5 | . . . . . . . . . . . . . . 1 . 2 . . 1 . . . . . . . 1 . . . . . . Used 2 | . . . . . . . . . . . . . . 1 . 1 . . . . . . . . . . . . . . . . . Hacking Detections 160 | . 6 . 7 . . . 8 12 . 11 . 13 . 7 . 14 2 13 8 . 14 2 12 . 4 1 8 . 10 . 4 3 1 Full Trace Events 32 | . . . . . . . . 3 . . . . . 2 . 4 . 1 3 . 5 1 5 . . . 2 . 4 . 1 1 . Feedback Events 1 | . . . . . . . . . . . . . . 1 . . . . . . . . . . . . . . . . . . . Corruption 1 | . . . . . . . . . . . . . . 1 . . . . . . . . . . . . . . . . . . . Feedback Blocked . | . . . . . . . . . . . . . . . . . . . . . . . . . . . . . . . . . . Robot Schematics Acquired 1 | . . . . . . . . . . . . . . . . . . . . . . . 1 . . . . . . . . . . Robots Built 1 | . . . . . . . . . . . . . . . . . . . . . . . . . . . 1 . . . . . . Authchips . | . . . . . . . . . . . . . . . . . . . . . . . . . . . . . . . . . . Time 46 | . . . . . . . . . . . . . . . . . . . . . . . . . . . 46 . . . . . . Total Robot Build Rating 7 | . . . . . . . . . . . . . . . . . . . . . . . . . . . 7 . . . . . . Part Schematics Acquired 13 | . . . . . . . . 1 . 1 . . . 1 . 2 . 1 2 . . . 1 . . . 1 . 2 . 1 . . Parts Built 26 | . . . . . . . . 2 . . . 1 . 1 . 3 . 1 3 . 5 . 4 . . . 2 . 3 . 1 . . Authchips . | . . . . . . . . . . . . . . . . . . . . . . . . . . . . . . . . . . Time 1727 | . . . . . . . . 47 . . . 95 . 76 . 159 . 53 191 . 430 . 403 . . . 120 . 116 . 37 . . Total Part Build Rating 175 | . . . . . . . . 10 . . . 5 . 5 . 18 . 6 17 . 38 . 31 . . . 17 . 19 . 9 . . Parts Repaired 35 | . . . . . . . 1 1 . 3 . 3 . 1 . 4 . 1 3 . 7 . 2 . 3 . 6 . . . . . . Time 1896 | . . . . . . . 51 50 . 138 . 108 . 38 . 173 . 40 174 . 514 . 108 . 136 . 366 . . . . . . Parts Recycled . | . . . . . . . . . . . . . . . . . . . . . . . . . . . . . . . . . . Recycled Matter . | . . . . . . . . . . . . . . . . . . . . . . . . . . . . . . . . . . Retrieved Matter . | . . . . . . . . . . . . . . . . . . . . . . . . . . . . . . . . . . Retrieved Components 25 | . . . 14 . . . . 4 . 5 . 2 . . . . . . . . . . . . . . . . . . . . . Parts Scanalyzed 6 | . . . . . . . . . . 1 . . . . . 1 . 2 1 . . . 1 . . . . . . . . . . Part Schematics Acquired 5 | . . . . . . . . . . 1 . . . . . 1 . 1 1 . . . 1 . . . . . . . . . . Parts Damaged 3 | . . . . . . . . . . 1 . . . . . . . 1 . . . . 1 . . . . . . . . . . Bothacking | -11 -10 -10 -9 -9 -9 -8 -8 -7 -7 -7 -7 -7 -7 -6 -6 -6 -6 -6 -5 -5 -5 -5 -4 -4 -4 -4 -4 -4 -3 -3 -3 -2 -1 ------------ Run | Yrd Mat Min Mat Min Exi Min Mat Fac Was Fac Gar Fac Gar Fac Was Fac Gar Fac Fac Was Fac Gar Fac Was Fac Gar Fac Gar Res Gar Res Res Acc Used RIF Installer 7 | . . . . . . . . . . . 1 . 1 . . . 1 . . . . 1 . . . 1 . 1 . 1 . . . Coupler Efficiency 1 | . . . . . . . . . . . . . 1 . . . . . . . . . . . . . . . . . . . . Hotswap 1 | . . . . . . . . . . . . . . . . . 1 . . . . . . . . . . . . . . . . Threat Obfuscator 1 | . . . . . . . . . . . . . . . . . . . . . . . . . . 1 . . . . . . . Zone Cloak 1 | . . . . . . . . . . . . . . . . . . . . . . . . . . . . . . 1 . . . Watcher Feeds 1 | . . . . . . . . . . . . . . . . . . . . . . . . . . . . 1 . . . . . Program Shield 1 | . . . . . . . . . . . . . . . . . . . . . . 1 . . . . . . . . . . . Robots Hacked 1 | . . . . . . . . . . . . . . 1 . . . . . . . . . . . . . . . . . . . Non-combat 1 | . . . . . . . . . . . . . . 1 . . . . . . . . . . . . . . . . . . . Combat . | . . . . . . . . . . . . . . . . . . . . . . . . . . . . . . . . . . Robot Hacks Applied 1 | . . . . . . . . . . . . . . 1 . . . . . . . . . . . . . . . . . . . find_chute 1 | . . . . . . . . . . . . . . 1 . . . . . . . . . . . . . . . . . . . Relay Couplers Released 18 | . . . . . . . . 2 . 4 4 2 . . . . . 1 1 . . . . . . . . . . 4 . . . Machine Destruction 18 | . . . . . . . . 2 . 4 4 2 . . . . . 1 1 . . . . . . . . . . 4 . . . Attached 1 | . . . . . . . . . . . . . . . . . . . . . . . . . . . . . 1 . . . . Fabnet Peak Effective % . | . . . . . . . . . . . . . . . . . . . . . . . . . . . . . . . . . . Robots Rewired 12 | . . . . . . . . . . . . . . 5 . . 2 . 1 . . . . . . 2 . . . 2 . . . Allies Hacked . | . . . . . . . . . . . . . . . . . . . . . . . . . . . . . . . . . . Hacks Repelled . | . . . . . . . . . . . . . . . . . . . . . . . . . . . . . . . . . . Allies | -11 -10 -10 -9 -9 -9 -8 -8 -7 -7 -7 -7 -7 -7 -6 -6 -6 -6 -6 -5 -5 -5 -5 -4 -4 -4 -4 -4 -4 -3 -3 -3 -2 -1 -------- Run | Yrd Mat Min Mat Min Exi Min Mat Fac Was Fac Gar Fac Gar Fac Was Fac Gar Fac Fac Was Fac Gar Fac Was Fac Gar Fac Gar Res Gar Res Res Acc Total Allies 96 | . . . 2 3 . . 12 4 . 4 . 4 . 5 20 1 2 3 3 . 7 . 4 . 3 2 6 . 6 2 2 . 1 Largest Group 20 | . . . 2 3 3 3 2 4 . 4 4 4 . 5 20 19 2 1 2 . 4 1 1 . 3 2 3 1 2 2 2 . 1 Highest-Rated Group 792 | . . . 20 40 40 40 86 126 . 88 88 104 . 123 792 714 201 26 75 . 116 10 26 . 141 238 141 45 71 264 52 . 45 Highest-Rated Ally 148 | . . . 10 16 16 16 86 37 . 26 26 26 . 41 50 50 116 26 65 . 29 10 26 . 47 119 47 45 45 148 26 . 45 Total Orders 20 | . . . . . . . 1 1 . 2 2 4 . . . . 1 . 2 . . . . . . 1 3 . 2 1 . . . STAY 12 | . . . . . . . . 1 . 1 1 2 . . . . 1 . 1 . . . . . . 1 2 . 1 1 . . . FOLLOW 7 | . . . . . . . . . . 1 1 2 . . . . . . 1 . . . . . . . 1 . 1 . . . . RETURN 1 | . . . . . . . 1 . . . . . . . . . . . . . . . . . . . . . . . . . . Ally Attacks 483 | . . . . 10 . 33 103 23 . . . . . 42 . 191 24 . . . 12 . . . 7 6 13 . . 19 . . . Total Damage 8737 | . . . . 38 . 310 562 231 . . . . . 892 . 3647 1322 . . . 153 . . . 213 382 271 . . 716 . . . Kills 59 | . . . . 1 . 3 7 2 . . . . . 8 . 26 6 . . . 1 . . . 1 1 . . . 3 . . . Allies Corrupted 5 | . . . . . . . . . . . . . . 1 . 2 . . . . . . . . . 1 . . . 1 . . . Allies Melted 4 | . . . . . . . . . . . . . . . . 1 1 . . . 2 . . . . . . . . . . . . Intel | -11 -10 -10 -9 -9 -9 -8 -8 -7 -7 -7 -7 -7 -7 -6 -6 -6 -6 -6 -5 -5 -5 -5 -4 -4 -4 -4 -4 -4 -3 -3 -3 -2 -1 ------- Run | Yrd Mat Min Mat Min Exi Min Mat Fac Was Fac Gar Fac Gar Fac Was Fac Gar Fac Fac Was Fac Gar Fac Was Fac Gar Fac Gar Res Gar Res Res Acc Robot Analysis Total 3 | . 2 . . . . . . . . . . . . . . . . . . . . . . . . . . . 1 . . . . Derelict Logs Recovered 3 | . . 2 . 1 . . . . . . . . . . . . . . . . . . . . . . . . . . . . . Drone Launches 96 | . . . . . . . 96 . . . . . . . . . . . . . . . . . . . . . . . . . . Drone Recoveries 91 | . . . . . . . 91 . . . . . . . . . . . . . . . . . . . . . . . . . . Exploration | -11 -10 -10 -9 -9 -9 -8 -8 -7 -7 -7 -7 -7 -7 -6 -6 -6 -6 -6 -5 -5 -5 -5 -4 -4 -4 -4 -4 -4 -3 -3 -3 -2 -1 ------------- Run | Yrd Mat Min Mat Min Exi Min Mat Fac Was Fac Gar Fac Gar Fac Was Fac Gar Fac Fac Was Fac Gar Fac Was Fac Gar Fac Gar Res Gar Res Res Acc Turns Passed 35898 | 74 1406 932 3779 1410 529 1317 2906 1586 33 1184 144 1761 112 1371 814 1374 497 1978 1992 30 2078 287 1507 56 1005 285 2367 135 1371 142 1148 233 55 Spaces Moved 42064 | 42 650 540 1393 554 220 521 981 2694 83 1917 174 3366 145 2040 243 2240 511 3310 2837 73 3167 369 2432 190 1993 372 3933 252 1978 366 1634 581 263 Core 2 | 2 . . . . . . . . . . . . . . . . . . . . . . . . . . . . . . . . . Treads 4899 | 40 650 540 1393 554 220 521 981 . . . . . . . . . . . . . . . . . . . . . . . . . . Legs . | . . . . . . . . . . . . . . . . . . . . . . . . . . . . . . . . . . Wheels . | . . . . . . . . . . . . . . . . . . . . . . . . . . . . . . . . . . Hover . | . . . . . . . . . . . . . . . . . . . . . . . . . . . . . . . . . . Flight 37163 | . . . . . . . . 2694 83 1917 174 3366 145 2040 243 2240 511 3310 2837 73 3167 369 2432 190 1993 372 3933 252 1978 366 1634 581 263 Fastest Speed 15 | 50 160 160 160 240 240 240 160 30 37 37 37 37 37 30 37 37 37 30 37 37 22 23 23 23 23 23 23 23 19 19 15 15 18 Average Speed 53 | 154 160 160 225 240 240 240 239 38 37 37 37 37 37 36 37 37 37 36 37 37 37 23 23 23 23 24 24 26 22 20 22 17 18 Slowest Speed 246 | 160 160 160 240 240 240 240 246 42 37 37 37 50 37 37 37 39 37 37 37 37 86 83 83 23 83 83 83 83 23 23 89 18 18 Overloaded Moves 21 | . . . . . . . . 8 . . . . . 5 . . . 8 . . . . . . . . . . . . . . . Propulsion Burnouts . | . . . . . . . . . . . . . . . . . . . . . . . . . . . . . . . . . . Robots Hopped 211 | . . . . . . . . 17 . 9 . 12 . 8 . 13 2 35 12 . 3 . 15 . 10 . 18 1 20 2 16 15 3 Cave-ins Triggered . | . . . . . . . . . . . . . . . . . . . . . . . . . . . . . . . . . . Exploration Rate (%) 59 | 4 97 93 97 94 61 98 90 63 86 51 15 71 34 32 90 48 55 73 54 78 62 49 35 97 42 59 61 30 69 44 46 28 12 Regions Visited 33 Branch Regions 4 Pre-discovered Areas 4 | . 2 . . 1 1 . . . . . . . . . . . . . . . . . . . . . . . . . . . . Known Exits Taken 10 | . . . . . . . . . . 1 . 1 . . . 1 . 1 . . 1 . . . 1 . 1 . 1 . 1 1 . Unknown Exits Taken 8 | 1 1 1 1 1 1 1 1 . . . . . . . . . . . . . . . . . . . . . . . . . . Scrap Searched 2 | . . 1 . 1 . . . . . . . . . . . . . . . . . . . . . . . . . . . . . Spaces Dug 411 | . 3 . . . . . . 25 . 34 . 30 16 24 . 17 4 30 26 . 19 1 30 . 27 2 25 2 33 8 28 26 1 Terrain Destroyed 2050 | . 6 . 63 100 . 209 31 124 . 70 91 81 47 172 . 17 55 40 87 . 170 123 146 . 54 54 95 6 33 74 37 64 1 Melee 332 | . 3 . . . . . . 25 . 14 . 30 . 16 . 17 4 30 26 . 19 1 30 . 19 2 25 2 28 5 28 7 1 Projectile 72 | . . . 35 12 . . 14 . . 3 . . . . . . . . . . . . . . . . . . 5 3 . . . AOE 1646 | . 3 . 28 88 . 209 17 99 . 53 91 51 47 156 . . 51 10 61 . 151 122 116 . 35 52 70 4 . 66 9 57 . Terrain Rammed . | . . . . . . . . . . . . . . . . . . . . . . . . . . . . . . . . . . Walls Destroyed . | . . . . . . . . . . . . . . . . . . . . . . . . . . . . . . . . . . Machines Disabled . | . . . . . . . . . . . . . . . . . . . . . . . . . . . . . . . . . . Actions | -11 -10 -10 -9 -9 -9 -8 -8 -7 -7 -7 -7 -7 -7 -6 -6 -6 -6 -6 -5 -5 -5 -5 -4 -4 -4 -4 -4 -4 -3 -3 -3 -2 -1 --------- Run | Yrd Mat Min Mat Min Exi Min Mat Fac Was Fac Gar Fac Gar Fac Was Fac Gar Fac Fac Was Fac Gar Fac Was Fac Gar Fac Gar Res Gar Res Res Acc Total 53320 | 48 851 572 1726 590 223 561 1290 3113 84 2317 236 3749 191 2528 960 2735 796 3933 3688 74 3967 546 3252 202 2486 547 5217 308 2824 411 2353 677 265 Wait 8984 | . 67 4 108 3 . 13 118 272 2 309 50 232 37 306 708 453 241 490 741 . 657 155 693 10 451 146 1119 48 775 27 661 83 5 Move 41645 | 41 649 539 1392 553 219 520 980 2661 82 1899 173 3343 144 2025 242 2215 507 3247 2813 72 3161 368 2404 189 1974 371 3898 249 1944 362 1603 550 256 Hop 184 | . . . . . . . . 16 . 8 . 11 . 7 . 12 1 27 12 . 3 . 13 . 9 . 17 1 14 1 14 15 3 Pick Up 105 | 1 7 3 19 1 1 . 4 6 . 3 . 5 . 5 2 3 . 7 5 1 3 . 9 2 4 2 6 . 1 . 4 1 . Fast Attach 109 | 6 4 . 4 . . . 8 13 . 2 . 11 . 7 . 5 . 6 5 1 14 . 9 . 2 . 6 . 2 . 4 . . Attach 64 | . 1 . 3 2 . 1 5 7 . . . 1 . 3 . 1 . 2 3 . 8 1 9 . . 2 4 . 3 1 3 4 . Detach 44 | . 3 . 1 . . . 1 8 . . . 3 . 2 . 3 . 1 2 . 6 2 6 . . . 4 . 1 . 1 . . Swap 246 | . 12 3 23 3 . 1 9 17 . 13 2 18 1 22 1 7 2 6 5 . 5 1 14 . 14 4 29 3 13 3 12 3 . Drop 136 | . 8 3 12 . 3 . 12 26 . 2 . 12 . 7 2 2 . 10 3 . 1 1 10 1 3 2 6 . 5 . 5 . . Fire 609 | . 89 17 151 23 . 23 150 7 . 9 5 8 8 22 . . 4 3 10 . 11 9 14 . 4 7 15 2 5 7 1 5 . Melee 687 | . 7 . . . . . . 63 . 34 6 69 1 66 5 22 11 62 45 . 46 8 58 . 21 8 57 5 41 10 30 11 1 Ram . | . . . . . . . . . . . . . . . . . . . . . . . . . . . . . . . . . . Kick . | . . . . . . . . . . . . . . . . . . . . . . . . . . . . . . . . . . Crush 31 | . 4 3 13 5 . 3 3 . . . . . . . . . . . . . . . . . . . . . . . . . . Escape Stasis 61 | . . . . . . . . . . . . . . 4 . . 16 3 . . 33 . . . . 5 . . . . . . . Rewire 5 | . . . . . . . . . . . . . . . . . . . 5 . . . . . . . . . . . . . . Trap 410 | . . . . . . . . 17 . 38 . 36 . 52 . 12 14 69 39 . 19 1 13 . 4 . 56 . 20 . 15 5 . Miscellaneous . | . . . . . . . . . . . . . . . . . . . . . . . . . . . . . . . . . . Route ------- -11/Scrapyard -10/Materials (discovered 6 exits: *Mat x3 / *Min x2 / [*Sub]) -10/Mines (discovered 3 exits: *Mat x2 / [*Sub]) -9/Materials (discovered 6 exits: *Mat x3 / [*Min] / *Sto x2) -9/Mines (discovered 4 exits: *Mat x2 / *Exi / [*Zio]) -9/Exiles -8/Mines (discovered 2 exits: *Mat x2) -8/Materials (discovered 2 exits: *Fac x2) -7/Factory (discovered 4 exits: *Fac x3 / *Low) -7/Waste -7/Factory (discovered 2 exits: *Low / Gar) -7/Garrison (discovered 4 exits: *Fac x4) -7/Factory (discovered 6 exits: *Fac x3 / *Low x2 / Gar) -7/Garrison -6/Factory -6/Waste -6/Factory (discovered 7 exits: *Fac x2 / Low x2 / *Ext x2 / Gar) -6/Garrison (discovered 3 exits: *Fac x3) -6/Factory (discovered 6 exits: *Fac x4 / *Low / *Ext) -5/Factory (discovered 2 exits: Upp x2) -5/Waste -5/Factory (discovered 6 exits: *Fac x3 / Upp x2 / Gar) -5/Garrison (discovered 3 exits: *Fac x3) -4/Factory (discovered 3 exits: *Res x3) -4/Waste -4/Factory (discovered 4 exits: *Res / *Upp x2 / Gar) -4/Garrison (discovered 3 exits: *Fac x3) -4/Factory (discovered 2 exits: *Upp / Gar) -4/Garrison -3/Research (discovered 7 exits: *Res x3 / Arm / *Tes x2 / Gar) -3/Garrison -3/Research (discovered 3 exits: *Res / Arm / *Tes) -2/Research (discovered 4 exits: *Acc x3 / [Qua]) -1/Access (discovered 2 exits: *Sur / [Com]) To Epsilon Eridani History --------- Turn | Location | Event 41 | -11/Scrapyard | Discovered new exit (range 15) 75 | -11/Scrapyard | Entered Materials 269 | -10/Materials | Discovered new exit (range 4) 316 | -10/Materials | Build established: Mutant 323 | -10/Materials | Discovered new exit (range 11) 332 | -10/Materials | Discovered new exit (range 9) 496 | -10/Materials | Discovered new exit (range 12) 644 | -10/Materials | Discovered new exit (range 13) 655 | -10/Materials | Central database locked down 887 | -10/Materials | Discovered new exit (range 16) 1481 | -10/Materials | Entered Mines 1499 | -10/Mines | YI-UF0 nonchalantly dropped a Grenade Launcher on the ground 1515 | -10/Mines | Learned 2 Materials zone layouts 1664 | -10/Mines | Discovered new exit (range 7) 1736 | -10/Mines | Discovered new exit (range 11) 1763 | -10/Mines | Found the Drone Emporium 1773 | -10/Mines | Found Prototype Device 1774 | -10/Mines | Identified Splice Drone Bay 1852 | -10/Mines | Discovered new exit (range 3) 2035 | -10/Mines | A weapon hastily lodged in a ceiling crevice suddenly fell to the ground 2413 | -10/Mines | Entered Materials 2413 | -9/Materials | Evolved 2 slots: Propulsion x1, Utility x1 2414 | -9/Materials | Identified exit to Storage 2713 | -9/Materials | Discovered new exit (range 16) 3024 | -9/Materials | Discovered new exit (range 16) 3353 | -9/Materials | Discovered new exit (range 14) 3783 | -9/Materials | Build established: Scavenger-Mutant 3855 | -9/Materials | Discovered new exit (range 16) 4067 | -9/Materials | Central database locked down 4978 | -9/Materials | Discovered exit to Storage (range 6) 6192 | -9/Materials | Entered Mines 6240 | -9/Mines | Learned location of Zion (-7) 6256 | -9/Mines | A Derelict revealed a hidden shortcut to a safe place 6368 | -9/Mines | Assembled infested the area 6373 | -9/Mines | Assisted by a Guerilla fighting off Assembled 6583 | -9/Mines | Build established: Mutant 6676 | -9/Mines | Found a damaged Exp. Sensor Array with a note attached 6681 | -9/Mines | Found Prototype Device 6915 | -9/Mines | Discovered new exit (range 9) 7029 | -9/Mines | Received a Rocket Launcher from a helpful Derelict 7225 | -9/Mines | Assisted by bots powering up and referring to "LRC-V3" 7537 | -9/Mines | Discovered new exit (range 4) 7593 | -9/Mines | Deemed a non-threat by the Exiles lab entrance 7593 | -9/Mines | Discovered new exit (range 5) 7602 | -9/Mines | Entered Exiles 7602 | -9/Exiles | Accompanied by 3 allies 7662 | -9/Exiles | Met 8R-AWN 7701 | -9/Exiles | Met EX-HEX 7773 | -9/Exiles | Met EX-BIN 7811 | -9/Exiles | Aligned with FarCom system 7814 | -9/Exiles | Given EX-Vault access code 7869 | -9/Exiles | Opened EX-Vault 7892 | -9/Exiles | Found Flying Fortress v7 7941 | -9/Exiles | Warned to stay clear of 0b10 Research branches 8013 | -9/Exiles | Met EX-DEC 8107 | -9/Exiles | Discovered new exit (range 11) 8131 | -9/Exiles | Left Exiles lab with Flying Fortress v7 8131 | -9/Exiles | Entered Mines 8131 | -8/Mines | Accompanied by 3 allies 8704 | -8/Mines | Core integrity fell below 50% 8903 | -8/Mines | Discovered new exit (range 5) 9399 | -8/Mines | Discovered new exit (range 6) 9448 | -8/Mines | Entered Materials 9448 | -8/Materials | Evolved 2 slots: Propulsion x1, Utility x1 10087 | -8/Materials | Lost 4 allies 10231 | -8/Materials | Garrison activated, responded to threat 10883 | -8/Materials | Discovered new exit (range 8) 11937 | -8/Materials | Repaired Cld. Ion Engine 12329 | -8/Materials | Discovered new exit (range 5) 12354 | -8/Materials | Entered Factory 12354 | -7/Factory | Evolved 2 slots: Propulsion x1, Utility x1 12449 | -7/Factory | Discovered new exit (range 15) 12612 | -7/Factory | Discovered new exit (range 4) 12640 | -7/Factory | Build established: Hacker-Mutant 13078 | -7/Factory | Discovered new exit (range 6) 13294 | -7/Factory | Repaired Imp. Trap Scanner 13493 | -7/Factory | Discovered new exit (range 11) 13567 | -7/Factory | Fabricated Imp. Surge Thruster? 13685 | -7/Factory | Cargo convoy interrupted 13940 | -7/Factory | Manually triggered Chute Trap 13940 | -7/Factory | Sucked down chute 13940 | -7/Factory | Entered Waste 13943 | -7/Waste | Spotted C-40 Crusher 13946 | -7/Waste | Spotted C-40 Crusher 13955 | -7/Waste | EMP discharged 13961 | -7/Waste | Spotted C-40 Crusher 13962 | -7/Waste | Spotted C-40 Crusher 13963 | -7/Waste | Discovered new exit (range 14) 13963 | -7/Waste | Spotted C-40 Crusher 13973 | -7/Waste | Entered Factory 14044 | -7/Factory | Repaired Imp. Datajack 14194 | -7/Factory | Repaired System Restoration Module 14563 | -7/Factory | Repaired Broken Tiamat Missile Launcher 14958 | -7/Factory | Discovered new exit (range 14) 15079 | -7/Factory | Cargo convoy interrupted 15154 | -7/Factory | Identified exit to Garrison 15157 | -7/Factory | Entered Garrison 15157 | -7/Garrison | Accompanied by 4 allies 15159 | -7/Garrison | Triggered checkpoint 15169 | -7/Garrison | Triggered checkpoint 15266 | -7/Garrison | Discovered new exit (range 50) 15266 | -7/Garrison | Discovered new exit (range 54) 15266 | -7/Garrison | Discovered new exit (range 62) 15266 | -7/Garrison | Discovered new exit (range 21) 15275 | -7/Garrison | Garrison Relay disabled 15280 | -7/Garrison | Installed Relay Interface Framework 15301 | -7/Garrison | Entered Factory 15301 | -7/Factory | Accompanied by 3 allies 15491 | -7/Factory | Discovered new exit (range 6) 15501 | -7/Factory | Identified exit to Lower Caves 15540 | -7/Factory | Discovered new exit (range 13) 15808 | -7/Factory | Discovered new exit (range 16) 15814 | -7/Factory | Fabricated Enh. Optical Array? 15849 | -7/Factory | Repaired Cold Fusion Reactor 15903 | -7/Factory | Discovered exit to Lower Caves (range 6) 15972 | -7/Factory | P-60 Hacker assimilated allied Administrator 4f 16228 | -7/Factory | Discovered new exit (range 4) 16312 | -7/Factory | Lost 3 allies 16503 | -7/Factory | Repaired Hrd. Medium Armor Plating 16547 | -7/Factory | Repaired System Restoration Module 16700 | -7/Factory | Build established: Trapper-Mutant 16974 | -7/Factory | Cargo convoy interrupted 17060 | -7/Factory | Identified exit to Garrison 17062 | -7/Factory | Entered Garrison 17081 | -7/Garrison | Build established: Hacker-Mutant 17115 | -7/Garrison | Triggered checkpoint 17120 | -7/Garrison | Triggered checkpoint 17157 | -7/Garrison | Destroyed 7 combat bots 17165 | -7/Garrison | Discovered new exit (range 12) 17168 | -7/Garrison | Expanded RIF knowledge: Coupler Efficiency 17174 | -7/Garrison | Entered Factory 17174 | -6/Factory | Evolved 2 slots: Utility x2 18075 | -6/Factory | Garrison activated, responded to threat 18103 | -6/Factory | Destroyed 7 combat bots 18134 | -6/Factory | Garrison activated, responded to threat 18205 | -6/Factory | Cargo convoy interrupted 18250 | -6/Factory | Found Prototype Launcher 18250 | -6/Factory | Identified Tactical Quantum Warhead 18256 | -6/Factory | Found Prototype Device 18256 | -6/Factory | Identified Exp. Shield Generator 18420 | -6/Factory | Repaired Imp. Datajack 18531 | -6/Factory | Fabricated Exp. Propulsion Shielding? 18545 | -6/Factory | Manually triggered Chute Trap 18545 | -6/Factory | Sucked down chute 18545 | -6/Factory | Entered Waste 18546 | -6/Waste | Joined by Warlord forces that had cleared the area 18555 | -6/Waste | Found Prototype Hackware 18602 | -6/Waste | Discovered new exit (range 14) 19359 | -6/Waste | Entered Factory 19359 | -6/Factory | Accompanied by 18 allies 19368 | -6/Factory | Found Prototype Processor 19368 | -6/Factory | Identified Exp. Targeting Computer 19409 | -6/Factory | Identified exit to Lower Caves 19409 | -6/Factory | Identified exit to Extension 19469 | -6/Factory | Identified Exp. System Shield 19579 | -6/Factory | Fabricated Adv. Hacking Suite? 19592 | -6/Factory | Garrison activated, responded to threat 19658 | -6/Factory | Repaired Exp. System Shield 19681 | -6/Factory | Repaired Chainsword 19706 | -6/Factory | Repaired System Restoration Module 19752 | -6/Factory | Discovered new exit (range 16) 19913 | -6/Factory | Fabricated Adv. Hacking Suite? 19952 | -6/Factory | Lost 3 allies 20143 | -6/Factory | Discovered new exit (range 14) 20207 | -6/Factory | Fabricated Adv. Hacking Suite? 20274 | -6/Factory | Repaired Exp. Propulsion Shielding 20411 | -6/Factory | Cargo convoy interrupted 20443 | -6/Factory | Garrison activated, responded to threat 20731 | -6/Factory | Identified exit to Garrison 20733 | -6/Factory | Entered Garrison 20927 | -6/Garrison | Triggered checkpoint 20952 | -6/Garrison | Discovered new exit (range 8) 20958 | -6/Garrison | Spotted B-90 Cyclops 20961 | -6/Garrison | Rewired B-75 Beast 20966 | -6/Garrison | Rewired B-86 Titan 21037 | -6/Garrison | Build established: Hacker-Scout 21077 | -6/Garrison | Heavy support dispatched to Factory 21107 | -6/Garrison | Discovered new exit (range 46) 21107 | -6/Garrison | Discovered new exit (range 36) 21107 | -6/Garrison | Discovered new exit (range 34) 21214 | -6/Garrison | Expanded RIF knowledge: Hotswap 21230 | -6/Garrison | Entered Factory 21537 | -6/Factory | Discovered exit to Lower Caves (range 15) 21582 | -6/Factory | Fabricated Adv. Hacking Suite? 21728 | -6/Factory | Discovered new exit (range 13) 21779 | -6/Factory | Discovered exit to Extension (range 14) 21910 | -6/Factory | Cargo convoy interrupted 21930 | -6/Factory | Search patrols dispatched 21937 | -6/Factory | Found Prototype Slashing Weapon 21937 | -6/Factory | Identified Nanosword 21953 | -6/Factory | Found Prototype Hackware 22113 | -6/Factory | Repaired Exp. Propulsion Shielding 22889 | -6/Factory | Identified exit to Factory 23112 | -6/Factory | Spotted B-75 Beast 23125 | -6/Factory | Identified exit to Garrison 23208 | -6/Factory | Entered another Factory area 23208 | -5/Factory | Evolved 2 slots: Utility x2 23246 | -5/Factory | Identified Exp. Hacking Suite 23547 | -5/Factory | Build established: Wizard-Scout 23758 | -5/Factory | Repaired Exp. Propulsion Shielding 23893 | -5/Factory | Identified exit to Upper Caves 23986 | -5/Factory | Cargo convoy interrupted 24061 | -5/Factory | Fabricated Imp. Datajack? 24201 | -5/Factory | Fabricated Exp. Hacking Suite? 24315 | -5/Factory | Fabricated Exp. Hacking Suite? 24443 | -5/Factory | Repaired Exp. Propulsion Shielding 24801 | -5/Factory | Repaired Nanosword 25200 | -5/Factory | Sucked down chute 25200 | -5/Factory | Entered Waste 25207 | -5/Waste | Spotted C-40 Crusher 25211 | -5/Waste | Spotted C-40 Crusher 25214 | -5/Waste | Spotted C-40 Crusher 25215 | -5/Waste | EMP discharged 25216 | -5/Waste | Spotted C-40 Crusher 25224 | -5/Waste | Discovered new exit (range 11) 25224 | -5/Waste | Spotted C-40 Crusher 25230 | -5/Waste | Entered Factory 25459 | -5/Factory | Discovered new exit (range 14) 25639 | -5/Factory | Fabricated Electron Diverter (x1) 25643 | -5/Factory | Discovered new exit (range 12) 25754 | -5/Factory | Fabricated Electron Diverter (x1) 26068 | -5/Factory | Build established: Wizard-Assassin 26336 | -5/Factory | Repaired Broken Electron Diverter 26427 | -5/Factory | Repaired Tiamat Missile Launcher 26536 | -5/Factory | Repaired Cld. Antimatter Reactor 26766 | -5/Factory | Repaired Electron Diverter 26799 | -5/Factory | Fabricated Electron Diverter (x1) 26821 | -5/Factory | Repaired Electron Diverter 26842 | -5/Factory | Repaired Adv. Weight Redist. System 26897 | -5/Factory | Repaired Electron Diverter 27139 | -5/Factory | Fabricated Exp. Hacking Suite (x1) 27174 | -5/Factory | Spotted B-75 Beast 27240 | -5/Factory | Fabricated Exp. Hacking Suite (x1) 27279 | -5/Factory | Discovered new exit (range 15) 27308 | -5/Factory | Identified exit to Garrison 27308 | -5/Factory | Entered Garrison 27308 | -5/Garrison | Accompanied by 1 ally 27313 | -5/Garrison | Build established: Wizard-Scout 27339 | -5/Garrison | Spotted B-75 Beast 27339 | -5/Garrison | Spotted B-75 Beast 27373 | -5/Garrison | Triggered checkpoint 27395 | -5/Garrison | H-XX Assembler disabled 27407 | -5/Garrison | Destroyed 7 combat bots 27586 | -5/Garrison | Expanded RIF knowledge: Program Shield 27592 | -5/Garrison | Discovered new exit (range 63) 27592 | -5/Garrison | Discovered new exit (range 59) 27592 | -5/Garrison | Discovered new exit (range 11) 27595 | -5/Garrison | Entered Factory 27595 | -4/Factory | Evolved 2 slots: Utility x2 27695 | -4/Factory | Discovered new exit (range 15) 27797 | -4/Factory | Fabricated Electron Diverter? 27973 | -4/Factory | Garrison activated, responded to threat 28017 | -4/Factory | Discovered new exit (range 4) 28019 | -4/Factory | Discovered new exit (range 20) 28088 | -4/Factory | Lost 5 parts (1p1n1u2w) 28124 | -4/Factory | Repaired Electron Diverter 28179 | -4/Factory | Repaired Electron Diverter 28293 | -4/Factory | Cargo convoy interrupted 28354 | -4/Factory | Found Prototype Reactor 28354 | -4/Factory | Identified Zero-point Reactor 28358 | -4/Factory | Found Prototype Device 28358 | -4/Factory | Identified Exp. Thermal Shield 28366 | -4/Factory | Found Prototype Launcher 28366 | -4/Factory | Identified Hellfire Missile Launcher 28406 | -4/Factory | Fabricated Exp. Hacking Suite? 28559 | -4/Factory | Fabricated Exp. Hacking Suite (x1) 28648 | -4/Factory | Fabricated Zero-point Reactor? 29038 | -4/Factory | Spotted Executioner 29095 | -4/Factory | Search patrols dispatched 29102 | -4/Factory | Manually triggered Chute Trap 29102 | -4/Factory | Sucked down chute 29102 | -4/Factory | Entered Waste 29104 | -4/Waste | Spotted C-40 Crusher 29104 | -4/Waste | Spotted C-40 Crusher 29110 | -4/Waste | Spotted C-40 Crusher 29117 | -4/Waste | EMP discharged 29117 | -4/Waste | System corruption reached 10% 29120 | -4/Waste | Spotted C-40 Crusher 29120 | -4/Waste | Spotted C-40 Crusher 29140 | -4/Waste | Spotted C-40 Crusher 29146 | -4/Waste | Discovered new exit (range 12) 29158 | -4/Waste | Entered Factory 29193 | -4/Factory | Identified exit to Upper Caves 29239 | -4/Factory | Spotted B-86 Titan 29249 | -4/Factory | Discovered new exit (range 12) 29356 | -4/Factory | Repaired Broken Adv. Cloaking Device 29388 | -4/Factory | Repaired Adv. Datajack 29444 | -4/Factory | Repaired Nanosword? 30052 | -4/Factory | Cargo convoy interrupted 30153 | -4/Factory | Build established: Wizard-Sprinter 30163 | -4/Factory | Identified exit to Garrison 30163 | -4/Factory | Entered Garrison 30256 | -4/Garrison | Spotted B-86 Titan 30261 | -4/Garrison | Discovered new exit (range 51) 30261 | -4/Garrison | Discovered new exit (range 23) 30261 | -4/Garrison | Discovered new exit (range 47) 30261 | -4/Garrison | Learned Factory security intel 30269 | -4/Garrison | Triggered checkpoint 30271 | -4/Garrison | Rewired Executioner 30272 | -4/Garrison | Rewired Executioner 30312 | -4/Garrison | Triggered checkpoint 30319 | -4/Garrison | Triggered checkpoint 30426 | -4/Garrison | Learned Factory security intel 30426 | -4/Garrison | Learned Factory security intel 30443 | -4/Garrison | Expanded RIF knowledge: Threat Obfuscation 30448 | -4/Garrison | Entered Factory 30524 | -4/Factory | Fabricated Enh. Nova Cannon (x1) 30538 | -4/Factory | Discovered exit to Upper Caves (range 6) 30577 | -4/Factory | Fabricated Electron Diverter? 30819 | -4/Factory | Spotted B-86 Titan 30860 | -4/Factory | Build established: Wizard-Ninja 31509 | -4/Factory | Build established: Wizard-Sprinter 31904 | -4/Factory | Cargo convoy interrupted 31945 | -4/Factory | Spotted Striker 32028 | -4/Factory | Found Prototype Device 32028 | -4/Factory | Identified Thermal Barrier 32031 | -4/Factory | Found Prototype Processor 32031 | -4/Factory | Identified Exp. Signal Interpreter 32034 | -4/Factory | Found Prototype Device 32034 | -4/Factory | Identified Exp. Weapon Cycler 32039 | -4/Factory | Core integrity fell below 50% 32206 | -4/Factory | Repaired Adv. Weight Redist. System 32269 | -4/Factory | Repaired Adv. Power Amplifier 32320 | -4/Factory | Repaired Imp. Trap Scanner 32448 | -4/Factory | Repaired Electron Diverter 32652 | -4/Factory | Repaired Electron Diverter 32708 | -4/Factory | Repaired Electron Diverter 32780 | -4/Factory | Fabricated O-32 Director? 32815 | -4/Factory | Identified exit to Garrison 32815 | -4/Factory | Entered Garrison 32815 | -4/Garrison | Accompanied by 1 ally 32828 | -4/Garrison | Expanded RIF knowledge: Watcher Feeds 32845 | -4/Garrison | Triggered checkpoint 32863 | -4/Garrison | Triggered checkpoint 32921 | -4/Garrison | Triggered checkpoint 32939 | -4/Garrison | Triggered checkpoint 32947 | -4/Garrison | Discovered new exit (range 11) 32950 | -4/Garrison | Entered Research 32950 | -3/Research | Evolved 2 slots: Propulsion x1, Utility x1 32965 | -3/Research | Identified exit to Armory 32965 | -3/Research | Identified exit to Testing 33012 | -3/Research | Spotted B-86 Titan 33143 | -3/Research | Identified exit to Research 33170 | -3/Research | Fabricated Exp. Terrain Scan Processor (x1) 33318 | -3/Research | Build established: Wizard-Ninja 33376 | -3/Research | Fabricated Lrn. Terrain Scanner (x1) 33435 | -3/Research | Fabricated Exp. Utility Shielding? 33605 | -3/Research | Spotted B-86 Titan 33844 | -3/Research | Build established: Wizard-Scout 34270 | -3/Research | Cargo convoy interrupted 34321 | -3/Research | Identified exit to Garrison 34321 | -3/Research | Entered Garrison 34323 | -3/Garrison | Triggered checkpoint 34337 | -3/Garrison | Triggered checkpoint 34353 | -3/Garrison | Discovered new exit (range 8) 34355 | -3/Garrison | Spotted B-86 Titan 34358 | -3/Garrison | Rewired B-90 Cyclops 34361 | -3/Garrison | Rewired B-86 Titan 34369 | -3/Garrison | Allies destroyed B-86 Titan 34440 | -3/Garrison | Expanded RIF knowledge: Zone Cloak 34442 | -3/Garrison | Garrison Relay disabled 34463 | -3/Garrison | Entered Research 34506 | -3/Research | Discovered exit to Research (range 14) 35275 | -3/Research | Fabricated Zero-point Reactor (x1) 35289 | -3/Research | Discovered exit to Armory (range 22) 35326 | -3/Research | Discovered exit to Testing (range 14) 35419 | -3/Research | Spotted B-86 Titan 35424 | -3/Research | Spotted B-86 Titan 35493 | -3/Research | Cargo convoy interrupted 35611 | -3/Research | Entered another Research area 35611 | -2/Research | Evolved 2 slots: Utility x2 35619 | -2/Research | Spotted B-90 Cyclops 35623 | -2/Research | Identified exit to Access 35718 | -2/Research | Discovered new exit (range 19) 35753 | -2/Research | Spotted B-90 Cyclops 35784 | -2/Research | Lost 3 parts (1p1u1w) 35844 | -2/Research | Entered Access 35844 | -1/Access | Evolved 2 slots: Utility x2 35863 | -1/Access | Discovered new exit (range 24) 35875 | -1/Access | Identified exit to Surface 35875 | -1/Access | Spotted B-99 Colossus 35899 | *** | Escaped! Last Messages --------------- 35875_ Connecting with Terminal... >>Access(Main) Found 1 level access point to Surface: (49,90) Map updated. 35875_ Slug penetrates Wall. 35875_ Penetrated by Slug. 35875_ Adv. Datajack destroyed. 35875_ Penetrated by Slug. 35875_ Relay Coupler [NC] destroyed. 35875_ >> Watcher Feeds: All visual feed links lost. 35875_ Slug penetrates Terminal. 35875_ Slug penetrates K-01 Serf. 35875_ K-01 Serf destroyed. 35878_ ALERT: Suspicious intruders detected, dispatching Cutter reinforcements to area. 35898_ Connecting with Terminal... >>Open(Door) Sealed Barrier opened. 35898_ The Access Shell folds into the floor. Map ----- +----------------------------------------------------+ | ?????????????????????????????????????????????????? | | ?????????????????????????????????????????????????? | | ?????????????????????????????????????????????????? | | ?????????????????????????????????????????????????? | | ?????????????????????????????????????????????????? | | ?????????????????????????????????????????????????? | | ??????????????????????#??????????????????????????? | | ????????????????#??#????????????#????????????????? | | ?????????????????????????????????????????????????? | | ????????????? ?????????? ????????????????????????? | | ??????????? ?????????????????????#???##??????????? | | ????????????????Y???????????????#????????????????? | | ????????????????????????????? ????##?????????????? | | ????????? ???????????? ? ????????#???????????????? | | ????????#??? ????#?# BB????BB ?????#?????????????? | | ?????????? ??????#?# BB? ?BB ??#????????????????? | | ???? ????? ?? ????? ??? ???????#????????#?????? | | ????????+?????? ???"""??????"??#???##???????????? | | ?? ?????? ??? ????##??""??""???#??#????#?????????? | | ??????#?# ?? ??? ##???"???""???#???#????#???##???? | | ???##?? #??? ?#?#""""""""""#????????#?????????? | | #????##?# ????### ###????????????????? | | ????#?#?#??#?###?### #??????#???????????? | | ?##?##??####?#?#?### #?#??????#?????????? | | ???#?#??###????##?## "" #??##??#??#?????##?? | | ? ??????????#?????# "@ ###?##?#???????????? | | ?? ??? ?? ?####### #??##??#???????##??? | | #? ? "? ? ? ?###### #??#??????#????????? | | ??? ?""?"?? ###??## ####??????#????????? | | #????"?""?? ?##??## ##?#??##??#????????? | | ???? "??"????####?# ##?##???#?????????? | | # ???"?"? ?#????##"" ##?##?#?#??#?#?????? | | # ? ???? ???#?#??#"" #??#?#??#?? ?? ????? | | ? ? "? ??? ??###?#"" #??##?##???? ??????? | | ?? ?? ?? ? #######T ##?####??# ?? ????? | | ???? ? ? ? ###?###"" #?#??#??##?? ? ????? | | ? ? ? ? ?####?##"" ##??##??#? ?? ????? | | ?####+#+############"" #####?#?#? ??? ????? | | #?## ? ???? ???? | | ?#??? ????? | | #### #####+#########################? #?? ??????? | | #??# # ###########?#?##?###? ?#? ? ?????? | | ?#?#? # # ####? ? ??? ?? ?????? | | ###?? # # ! ###? # ?+?? ??????? | | ##?? # # #?## ? ?"? #? ??###?????? | | #??#? # # [ !####? ??"? +? ????????? | | ???# # " # #### R" ?# ? ?? ????? | | ? #? # "" #####+###??# ? """ ???#?#?+??????? | | #??# "" #### #####? ?""???# ??????? | | ???#? # "" + + ? ?? ?? ???????? | +----------------------------------------------------+ Best States ------------- Heat Dissipation 75 Energy Generation 41 Energy Capacity 380 Matter Stores 300 Matter Capacity 300 Sight Range 16 Terrain Scan Range 24 Terrain Scan Density 1010 Jamming Range 14 Cloak Strength 4 Power Amplification 30 Additional Mass Support 9 Armor Coverage 450 Resistance: KI 30 Resistance: TH 50 Propulsion Shielding 90 Utility Shielding 90 Weapon Cycling 30 Evasion (%) 67 Targeting Accuracy 12 Recoil Reduction 4 Matter Filtering 50 Offensive Hacking 64 Defensive Hacking 30 Relay Coupler Types 1 Relay Coupler Value 24 Trap Extractor Capacity 8 Item Schematics ----------------- Imp. Surge Thruster | -7/Factory | Hacked Tiamat Missile Launcher | -7/Factory | Scanalyzed Exp. Propulsion Shielding | -6/Factory | Hacked Adv. Hacking Suite | -6/Factory | Hacked Exp. System Shield | -6/Factory | Scanalyzed Electron Diverter | -6/Factory | Scanalyzed Exp. Hacking Suite | -5/Factory | Scanalyzed Imp. Datajack | -5/Factory | Hacked Zero-point Reactor | -4/Factory | Scanalyzed Exp. Utility Shielding | -4/Factory | Hacked Lrn. Terrain Scanner | -3/Research | Hacked Exp. Terrain Scan Processor | -3/Research | Hacked Adv. Cloaking Device | -3/Research | Hacked Robot Schematics ------------------ O-32 Director | -4/Factory | Hacked Fabricated ------------ Imp. Surge Thruster | x2 | -7/Factory Enh. Optical Array | x1 | -7/Factory | Preloaded Exp. Propulsion Shielding | x1 | -6/Factory Adv. Hacking Suite | x1 | -6/Factory Adv. Hacking Suite | x1 | -6/Factory Adv. Hacking Suite | x1 | -6/Factory Adv. Hacking Suite | x1 | -6/Factory Imp. Datajack | x1 | -5/Factory Exp. Hacking Suite | x1 | -5/Factory Exp. Hacking Suite | x1 | -5/Factory Electron Diverter | x1 | -5/Factory Electron Diverter | x1 | -5/Factory Electron Diverter | x1 | -5/Factory Exp. Hacking Suite | x1 | -5/Factory Exp. Hacking Suite | x1 | -5/Factory Electron Diverter | x1 | -4/Factory Exp. Hacking Suite | x1 | -4/Factory Exp. Hacking Suite | x1 | -4/Factory Zero-point Reactor | x1 | -4/Factory Enh. Nova Cannon | x1 | -4/Factory | Preloaded Electron Diverter | x1 | -4/Factory O-32 Director | x1 | -4/Factory Exp. Terrain Scan Processor | x1 | -3/Research Lrn. Terrain Scanner | x1 | -3/Research Exp. Utility Shielding | x1 | -3/Research Zero-point Reactor | x1 | -3/Research Alien Tech Used ----------------- None Achievements -------------- Minesweeper Challenges ------------ None Game ------ Seed MagneticResetEngine Manual? 0 Play Time 05:40:40 Cumulative 434.2 hours Start 2024.07.08 @ 10:47:18 End 2024.07.09 @ 11:40:46 Sessions 11 Manual Loads 0 Difficulty Rogue Special Mode None Game No. 262 Rogue 262 Adventurer 0 Explorer 0 Win Type 0 Total 28 Types 20/2/3/1/1/0/0/1/0 Lore% 88 Gallery% 88 Achievement% 84 Wizard Run 0 Options --------- Layout 0 ASCII 0 Keyboard 1 Movement Numpad Keybinds 0 Fullscreen 2 Font 18/SmallcapsGlow Map View 76x50 Zoom Use 0% Tactical HUD 1 Map Filters NONE Filters NONE Steam 1 RUN: 8e2d2ef2-25d1-4c2e-a3a0-0c9f32b3c133